Workbook

Sheet AER only (hidden)
B1: Data in these columns used for data validation and database purposes.
B2: Date last modified: | C2: 2017-01-16 | D2: added (Albury and Victora) for AGN
C3: 2016-10-17 | D3: updated TransGrid's correct legal name, corrected TasNetworks (T) to June financial year
C4: 2017-02-01 | D4: inserted Power and Water, added NRs (dms_FeederCat_1 and dms_FeederCat_2)
C5: 2017-03-03 | D5: inserted AEMO as a business | AB5: FOR ELECTRICITY BUSINESSES ONLY
C6: 2018-03-28 | D6: major changes to accommodate STPIS
C7: Template Version | D7: 5 | AB7: Feeder Types | AF7: TasNetworks (D) | AG7: MAIFI flag | AH7: Feeder Names
AB9: CBD | AC9: Urban | AD9: Short rural | AE9: long rural | AF9: EXTRA
B10: dms_TradingName_List | C10: dms_TradingNameFull_List | D10: dms_ABN_List | E10: dms_JurisdictionList | F10: dms_Sector_List | G10: dms_Segment_List | H10: dms_FormControl_List | I10: dms_RPT_List | J10: dms_RPTMonth_List | K10: dms_CRCPlength_List | L10: dms_FRCPlength_List | M10: dms_663_List | N10: dms_DeterminationRef_List | O10: dms_Addr1_List | P10: dms_Addr2_List | Q10: dms_Suburb_List | R10: dms_State_List | S10: dms_PostCode_List | T10: dms_PAddr1_List | U10: dms_PAddr2_List | V10: dms_PSuburb_List | W10: dms_PState_List | X10: dms_PPostCode_List | Y10: dms_ContactName1_List | Z10: dms_ContactPh1_List | AA10: dms_ContactEmail_List | AB10: dms_CBD_flag | AC10: dms_Urban_flag | AD10: dms_ShortRural_flag | AE10: dms_LongRural_flag | AF10: dms_FeederType_5_flag | AG10: dms_MAIFI_flag_List | AH10: dms_FeederName_1 | AI10: dms_FeederName_2 | AJ10: dms_FeederName_3 | AK10: dms_FeederName_4 | AL10: dms_FeederName_5 | AM10: dms_Public_Lighting_List | AN10: Column1
B11: ActewAGL Distribution | C11: ActewAGL Distribution | D11: 76670568688 | E11: ACT | F11: Electricity | G11: Distribution | H11: Revenue cap | I11: Financial | J11: June | K11: 5 | L11: 5 | M11: 5 | N11: 2014-19 Distribution Determination | O11: 40 Bunda Street | Q11: CANBERRA | R11: ACT | S11: 2600 | T11: GPO BOX 366 | V11: CANBERRA | W11: ACT | X11: 2601 | Y11: Robert Walker | Z11: 02 6248 3847 | AA11: robert.walker@actewagle.com.au | AB11: NO | AC11: YES | AD11: YES | AE11: NO | AF11: NO | AH11: CBD | AI11: Urban | AJ11: Short rural | AK11: Long rural | AM11: NO | AN11: ActewAGL Distribution
B12: ActewAGL Distribution (Tx Assets) | C12: ActewAGL Distribution (Tx Assets) | D12: 76670568688 | E12: ACT | F12: Electricity | G12: Distribution | H12: Revenue cap | I12: Financial | J12: June | K12: 5 | L12: 5 | M12: 5 | N12: distribution determination | O12: 40 Bunda Street | Q12: CANBERRA | R12: ACT | S12: 2600 | T12: GPO BOX 366 | V12: CANBERRA | W12: ACT | X12: 2601 | Y12: Robert Walker | Z12: 02 6248 3847 | AA12: robert.walker@actewagle.com.au | AB12: NO | AC12: YES | AD12: YES | AE12: NO | AF12: NO | AH12: CBD | AI12: Urban | AJ12: Short rural | AK12: Long rural | AM12: NO | AN12: ActewAGL Distribution (Tx Assets)
B13: ActewAGL Gas | C13: ActewAGL Gas | D13: 76670568688 | E13: ACT | F13: Gas | G13: Distribution | H13: Weighted average price cap | I13: Financial | J13: June | K13: 5 | L13: 5 | M13: x | O13: 40 Bunda Street | Q13: CANBERRA | R13: ACT | S13: 2600 | T13: GPO BOX 366 | V13: CANBERRA | W13: ACT | X13: 2601 | Y13: Philip Deamer | Z13: 02 6248 3438 | AA13: GasAAReview@actewagl.com.au | AB13: NO | AC13: NO | AD13: NO | AE13: NO | AF13: NO | AH13: CBD | AI13: Urban | AJ13: Short rural | AK13: Long rural | AM13: NO | AN13: ActewAGL Gas
B14: AEMO | C14: Australian Energy Market Operator Ltd | D14: 94072010327 | E14: Vic | F14: Electricity | G14: Transmission | H14: - | I14: Financial | J14: March | K14: 5 | L14: 5 | M14: x | N14: - | O14: Level 22 | P14: 530 Collins Street | Q14: MELBOURNE | R14: VIC | S14: 3000 | T14: GPO Box 2008 | V14: MELBOURNE | W14: VIC | X14: 3001 | AB14: NO | AC14: NO | AD14: NO | AE14: NO | AF14: NO | AH14: CBD | AI14: Urban | AJ14: Short rural | AK14: Long rural | AM14: NO | AN14: AEMO
B15: AGN (Albury and Victoria) | C15: Australian Gas Networks Limited (reporting data for Albury and Victoria) | D15: 19078551685 | E15: Vic | F15: Gas | G15: Distribution | H15: Weighted average price cap | I15: Calendar | J15: December | K15: 5 | L15: 5 | M15: x | O15: Level 6 | P15: 400 King William Street | Q15: ADELAIDE | R15: SA | S15: 5000 | T15: PO Box 6468 | U15: Halifax Street | V15: ADELAIDE | W15: SA | X15: 5000 | Y15: Craig de Laine | Z15: 08 8418 1129 | AA15: craig.delaine@agn.com.au | AB15: NO | AC15: NO | AD15: NO | AE15: NO | AF15: NO | AH15: CBD | AI15: Urban | AJ15: Short rural | AK15: Long rural | AM15: NO | AN15: AGN (Albury)
B16: AGN (Albury) | C16: Australian Gas Networks Limited (reporting data for Albury) | D16: 19078551685 | E16: Vic | F16: Gas | G16: Distribution | H16: Weighted average price cap | I16: Calendar | J16: December | K16: 5 | L16: 5 | M16: x | O16: Level 6 | P16: 400 King William Street | Q16: ADELAIDE | R16: SA | S16: 5000 | T16: PO Box 6468 | U16: Halifax Street | V16: ADELAIDE | W16: SA | X16: 5000 | Y16: Craig de Laine | Z16: 08 8418 1129 | AA16: craig.delaine@agn.com.au | AB16: NO | AC16: NO | AD16: NO | AE16: NO | AF16: NO | AH16: CBD | AI16: Urban | AJ16: Short rural | AK16: Long rural | AM16: NO
B17: AGN (SA) | C17: Australian Gas Networks Limited (reporting data for SA) | D17: 19078551685 | E17: SA | F17: Gas | G17: Distribution | H17: Weighted average price cap | I17: Financial | J17: June | K17: 5 | L17: 5 | M17: 5 | N17: distribution determination | O17: Level 6 | P17: 400 King William Street | Q17: ADELAIDE | R17: SA | S17: 5000 | T17: PO Box 6468 | U17: Halifax Street | V17: ADELAIDE | W17: SA | X17: 5000 | Y17: Craig de Laine | Z17: 08 8418 1129 | AA17: craig.delaine@agn.com.au | AB17: NO | AC17: NO | AD17: NO | AE17: NO | AF17: NO | AH17: CBD | AI17: Urban | AJ17: Short rural | AK17: Long rural | AM17: NO | AN17: AGN (SA)
B18: AGN (Victoria) | C18: Australian Gas Networks Limited (reporting data for Victoria) | D18: 19078551685 | E18: Vic | F18: Gas | G18: Distribution | H18: Weighted average price cap | I18: Calendar | J18: December | K18: 5 | L18: 5 | M18: x | O18: Level 6 | P18: 400 King William Street | Q18: ADELAIDE | R18: SA | S18: 5000 | T18: PO Box 6468 | U18: Halifax Street | V18: ADELAIDE | W18: SA | X18: 5000 | Y18: Craig de Laine | Z18: 08 8418 1129 | AA18: craig.delaine@agn.com.au | AB18: NO | AC18: NO | AD18: NO | AE18: NO | AF18: NO | AH18: CBD | AI18: Urban | AJ18: Short rural | AK18: Long rural | AM18: NO | AN18: AGN (Victoria)
B19: Amadeus | C19: APT Pipelines (NT) Pty Ltd | D19: 39009737393 | E19: NT | F19: Gas | G19: Transmission | H19: Weighted average price cap | I19: Financial | J19: June | K19: 5 | L19: 5 | M19: x | N19: n/a | O19: Level 19, HSBC Building | P19: 580 George Street | Q19: SYDNEY | R19: NSW | S19: 2000 | T19: Level 19, HSBC Building | U19: 580 George Street | V19: SYDNEY | W19: NSW | X19: 2000 | Y19: Alexandra Curran | Z19: 02 9275 0020 | AA19: alexandra.curran@apa.com.au | AB19: NO | AC19: NO | AD19: NO | AE19: NO | AF19: NO | AH19: CBD | AI19: Urban | AJ19: Short rural | AK19: Long rural | AM19: NO | AN19: Amadeus
B20: APA GasNet | C20: APA GasNet Australia (Operations) Pty Ltd | D20: 065083009 | E20: Vic | F20: Gas | G20: Transmission | H20: Weighted average price cap | I20: Calendar | J20: December | K20: 5 | L20: 5 | M20: x | O20: Level 19, HSBC Building | P20: 580 George Street | Q20: SYDNEY | R20: NSW | S20: 2000 | T20: PO Box R41 | V20: ROYAL EXCHANGE | W20: NSW | X20: 1225 | Y20: Alexandra Curran | Z20: 02 9275 0020 | AA20: alexandra.curran@apa.com.au | AB20: NO | AC20: NO | AD20: NO | AE20: NO | AF20: NO | AH20: CBD | AI20: Urban | AJ20: Short rural | AK20: Long rural | AM20: NO | AN20: APA GasNet
B21: Ausgrid | C21: Ausgrid | D21: 78508211731 | E21: NSW | F21: Electricity | G21: Distribution | H21: Revenue cap | I21: Financial | J21: June | K21: 5 | L21: 5 | M21: 5 | N21: 2014-19 Distribution Determination | O21: 570 George St | Q21: SYDNEY | R21: NSW | S21: 2000 | T21: GPO Box 4009 | V21: SYDNEY | W21: NSW | X21: 2001 | Y21: John Thomson | Z21: 02 9269 2312 | AA21: john.thomson@ausgrid.com.au | AB21: YES | AC21: YES | AD21: YES | AE21: YES | AF21: NO | AH21: CBD | AI21: Urban | AJ21: Short rural | AK21: Long rural | AM21: YES | AN21: Ausgrid
B22: Ausgrid (Tx Assets) | C22: Ausgrid (Tx Assets) | D22: 67505337385 | E22: NSW | F22: Electricity | G22: Distribution | H22: Revenue cap | I22: Financial | J22: June | K22: 5 | L22: 5 | M22: 5 | N22: distribution determination | O22: 570 George St | Q22: SYDNEY | R22: NSW | S22: 2000 | T22: GPO Box 4009 | V22: SYDNEY | W22: NSW | X22: 2001 | Y22: John Thomson | Z22: 02 9269 2312 | AA22: john.thomson@ausgrid.com.au | AB22: YES | AC22: YES | AD22: YES | AE22: YES | AF22: NO | AH22: CBD | AI22: Urban | AJ22: Short rural | AK22: Long rural | AM22: NO | AN22: Ausgrid (Tx Assets)
B23: AusNet (D) | C23: AusNet Electricity Services Pty Ltd | D23: 91064651118 | E23: Vic | F23: Electricity | G23: Distribution | H23: Revenue cap | I23: Calendar | J23: December | K23: 5 | L23: 5 | M23: 2 | N23: 2016-20 Distribution Determination | O23: Level 32 | P23: 2 Southbank Boulevard | Q23: SOUTHBANK | R23: Vic | S23: 3006 | T23: Locked Bag 14051 | V23: MELBOURNE CITY MAIL CENTRE | W23: VIC | X23: 8001 | Y23: please provide contact details | AB23: NO | AC23: YES | AD23: YES | AE23: YES | AF23: NO | AH23: CBD | AI23: Urban | AJ23: Short rural | AK23: Long rural | AM23: YES | AN23: AusNet (D)
B24: AusNet (Gas) | C24: AusNet Gas Services | D24: 086015036 | E24: Vic | F24: Gas | G24: Distribution | H24: Weighted average price cap | I24: Calendar | J24: December | K24: 5 | L24: 5 | M24: X | O24: Level 19, HSBC Building | P24: 580 George Street | Q24: SYDNEY | R24: NSW | S24: 2000 | T24: PO Box R41 | V24: ROYAL EXCHANGE | W24: NSW | X24: 1225 | Y24: Alexandra Curran | Z24: 02 9275 0020 | AA24: alexandra.curran@apa.com.au | AB24: NO | AC24: NO | AD24: NO | AE24: NO | AF24: NO | AH24: CBD | AI24: Urban | AJ24: Short rural | AK24: Long rural | AM24: NO | AN24: AusNet (Gas)
B25: AusNet (T) | C25: Ausnet Services (Transmission) Ltd | D25: 48116124362 | E25: Vic | F25: Electricity | G25: Transmission | H25: Revenue cap | I25: Financial | J25: March | K25: 5 | L25: 5 | M25: 2 | N25: transmission determination | O25: Level 32 | P25: 2 Southbank Boulevard | Q25: SOUTHBANK | R25: Vic | S25: 3006 | T25: Locked Bag 14051 | V25: MELBOURNE CITY MAIL CENTRE | W25: Vic | X25: 8001 | Y25: Clare Thompson | Z25: 03 9695 6670 | AA25: clare.e.thompson@ausnetservices.com.au | AB25: NO | AC25: NO | AD25: NO | AE25: NO | AF25: NO | AH25: CBD | AI25: Urban | AJ25: Short rural | AK25: Long rural | AM25: NO | AN25: AusNet (T)
B26: Australian Distribution Co. | C26: Australian Distribution Co. | D26: 11222333444 | E26: - | F26: Electricity | G26: Distribution | H26: Revenue cap | I26: Financial | J26: June | K26: 5 | L26: 5 | M26: 2 | N26: distribution determination | O26: 123 Straight Street | Q26: SYDNEY | R26: NSW | S26: 2000 | T26: PO Box 123 | V26: SYDNEY | W26: NSW | X26: 2000 | Y26: Bob Smith | Z26: 02 1234 5678 | AA26: bob@auselec.net.au | AB26: YES | AC26: YES | AD26: YES | AE26: YES | AF26: NO | AH26: CBD | AI26: Urban | AJ26: Short rural | AK26: Long rural | AM26: YES | AN26: Australian Distribution Co.
B27: Australian Distribution Co. (Gas) | C27: Australian Gas Distribution Co. | D27: 11222333444 | E27: NSW | F27: Gas | G27: Distribution | H27: Weighted average price cap | I27: Financial | J27: June | K27: 5 | L27: 5 | O27: 123 Straight Street | Q27: SYDNEY | R27: NSW | S27: 2000 | T27: PO Box 123 | V27: SYDNEY | W27: NSW | X27: 2000 | Y27: Bob Smith | Z27: 02 1234 5678 | AA27: bob@auselec.net.au | AB27: NO | AC27: NO | AD27: NO | AE27: NO | AF27: NO | AH27: CBD | AI27: Urban | AJ27: Short rural | AK27: Long rural | AM27: NO | AN27: Australian Distribution Co. (Vic)
B28: Australian Distribution Co. (Vic) | C28: Australian Distribution Co. (Victoria) | D28: 11222333444 | E28: Vic | F28: Electricity | G28: Distribution | H28: Revenue cap | I28: Calendar | J28: December | K28: 5 | L28: 5 | M28: 2 | N28: distribution determination | O28: 123 Straight Street | Q28: MELBOURNE | R28: Vic | S28: 3000 | T28: PO Box 123 | V28: MELBOURNE | W28: VIC | X28: 3000 | Y28: Bob Smith | Z28: 02 1234 5678 | AA28: bob@auselec.net.au | AB28: NO | AC28: NO | AD28: NO | AE28: NO | AF28: NO | AH28: CBD | AI28: Urban | AJ28: Short rural | AK28: Long rural | AM28: YES | AN28: Australian Distribution Co. (Vic)
B29: Australian Transmission Co. | C29: Australian Transmission Co. | D29: 11222333444 | E29: - | F29: Electricity | G29: Transmission | H29: Revenue cap | I29: Financial | J29: June | K29: 5 | L29: 5 | M29: 5 | N29: transmission determination | O29: 123 Straight Street | Q29: SYDNEY | R29: NSW | S29: 2000 | T29: PO Box 123 | V29: SYDNEY | W29: NSW | X29: 2000 | Y29: Bob Smith | Z29: 02 1234 5678 | AA29: bob@auselec.net.au | AB29: NO | AC29: NO | AD29: NO | AE29: NO | AF29: NO | AH29: CBD | AI29: Urban | AJ29: Short rural | AK29: Long rural | AM29: NO | AN29: Australian Transmission Co.
B30: Central Ranges Pipeline (D) | C30: Central Ranges Pipeline Pty Ltd | D30: 108218355 | E30: NSW | F30: Gas | G30: Distribution | H30: Weighted average price cap | I30: Financial | J30: June | K30: 15 | L30: 5 | M30: 5 | N30: distribution determination | O30: Level 19 | P30: 580 George Street | Q30: SYDNEY | R30: NSW | S30: 2000 | T30: PO Box R41 | V30: ROYAL EXCHANGE | W30: NSW | X30: 1225 | Y30: Scott Young | Z30: 02 9275 0031 | AA30: scott.young@apa.com.au | AB30: NO | AC30: NO | AD30: NO | AE30: NO | AF30: NO | AH30: CBD | AI30: Urban | AJ30: Short rural | AK30: Long rural | AM30: NO
B31: Central Ranges Pipeline (T) | C31: Central Ranges Pipeline Pty Ltd | D31: 108218355 | E31: NSW | F31: Gas | G31: Distribution | H31: Weighted average price cap | I31: Financial | J31: June | K31: 14 | L31: 5 | M31: 5 | N31: transmission determination | O31: Level 19 | P31: 580 George Street | Q31: SYDNEY | R31: NSW | S31: 2000 | T31: PO Box R41 | V31: ROYAL EXCHANGE | W31: NSW | X31: 1225 | Y31: Scott Young | Z31: 02 9275 0031 | AA31: scott.young@apa.com.au | AB31: NO | AC31: NO | AD31: NO | AE31: NO | AF31: NO | AH31: CBD | AI31: Urban | AJ31: Short rural | AK31: Long rural | AM31: NO
B32: CitiPower | C32: CitiPower | D32: 76064651056 | E32: Vic | F32: Electricity | G32: Distribution | H32: Revenue cap | I32: Calendar | J32: December | K32: 5 | L32: 5 | M32: 2 | N32: 2016-20 Distribution Determination | O32: 40 Market Street | Q32: MELBOURNE | R32: Vic | S32: 3000 | T32: Locked Bag 14090 | V32: MELBOURNE | W32: VIC | X32: 8001 | Y32: Hannah Williams | Z32: 03 9683 4088 | AA32: hwilliams@powercor.com.au | AB32: YES | AC32: YES | AD32: NO | AE32: NO | AF32: NO | AH32: CBD | AI32: Urban | AJ32: Short rural | AK32: Long rural | AM32: YES | AN32: CitiPower
B33: Directlink | C33: Directlink | D33: 16779340889 | E33: Qld | F33: Electricity | G33: Transmission | H33: Revenue cap | I33: Financial | J33: June | K33: 9 | L33: 5 | M33: 5 | N33: transmission determination | O33: Level 19, HSBC Building | P33: 580 George Street | Q33: SYDNEY | R33: NSW | S33: 2000 | T33: PO Box R41 | V33: ROYAL EXCHANGE | W33: NSW | X33: 1225 | Y33: Scott Young | Z33: 02 9275 0031 | AA33: scott.young@apa.com.au | AB33: NO | AC33: NO | AD33: NO | AE33: NO | AF33: NO | AH33: CBD | AI33: Urban | AJ33: Short rural | AK33: Long rural | AM33: NO | AN33: Directlink
B34: ElectraNet | C34: ElectraNet | D34: 41094482416 | E34: SA | F34: Electricity | G34: Transmission | H34: Revenue cap | I34: Financial | J34: June | K34: 5 | L34: 5 | M34: 5 | N34: transmission determination | O34: 52-55 East Terrace | P34: Rymill Park | Q34: ADELAIDE | R34: SA | S34: 5000 | T34: PO Box 7096 | U34: Hutt Street Post Office | V34: ADELAIDE | W34: SA | X34: 5000 | Y34: Bill Jackson | Z34: 08 8404 7969 | AA34: jackson.bill@electranet.com.au | AB34: NO | AC34: NO | AD34: NO | AE34: NO | AF34: NO | AH34: CBD | AI34: Urban | AJ34: Short rural | AK34: Long rural | AM34: NO | AN34: ElectraNet
B35: Endeavour Energy | C35: Endeavour Energy | D35: 11247365823 | E35: NSW | F35: Electricity | G35: Distribution | H35: Revenue cap | I35: Financial | J35: June | K35: 5 | L35: 5 | M35: 5 | N35: 2014-19 Distribution Determination | O35: 51 Huntingwood Drive | Q35: HUNTINGWOOD | R35: NSW | S35: 2148 | T35: PO Box 811 | V35: SEVEN HILLS | W35: NSW | X35: 1730 | Y35: Jon Hocking | Z35: 02 9853 4386 / 0407 348 156 | AA35: Jon.Hocking@Endeavourenergy.com.au | AB35: NO | AC35: YES | AD35: YES | AE35: YES | AF35: NO | AH35: CBD | AI35: Urban | AJ35: Short rural | AK35: Long rural | AM35: YES | AN35: Endeavour Energy
B36: Energex | C36: Energex | D36: 40078849055 | E36: Qld | F36: Electricity | G36: Distribution | H36: Revenue cap | I36: Financial | J36: June | K36: 5 | L36: 5 | M36: 5 | N36: 2015-20 Distribution Determination | O36: 26 Reddacliff Street | Q36: NEWSTEAD | R36: Qld | S36: 4006 | T36: 26 Reddacliff Street | V36: NEWSTEAD | W36: QLD | X36: 4006 | Y36: Jenny Doyle, Group Manager Regulatory Affairs | Z36: (07) 3851 6416 | AA36: jenny.doyle@ergon.com.au | AB36: YES | AC36: YES | AD36: YES | AE36: NO | AF36: NO | AH36: CBD | AI36: Urban | AJ36: Short rural | AK36: Long rural | AM36: YES | AN36: Energex
B37: Ergon Energy | C37: Ergon Energy | D37: 50087646062 | E37: Qld | F37: Electricity | G37: Distribution | H37: Revenue cap | I37: Financial | J37: June | K37: 5 | L37: 5 | M37: 5 | N37: 2015-20 Distribution Determination | O37: 22 Walker Street | Q37: TOWNSVILLE | R37: Qld | S37: 4810 | T37: Po Box 264 | V37: FORTITUDE VALLEY | W37: QLD | X37: 4006 | Y37: Jenny Doyle, Group Manager Regulatory Affairs | Z37: (07) 3851 6416 | AA37: jenny.doyle@ergon.com.au | AB37: NO | AC37: YES | AD37: YES | AE37: YES | AF37: NO | AH37: CBD | AI37: Urban | AJ37: Short rural | AK37: Long rural | AM37: YES | AN37: Ergon Energy
B38: Essential Energy | C38: Essential Energy | D38: 37428185226 | E38: NSW | F38: Electricity | G38: Distribution | H38: Revenue cap | I38: Financial | J38: June | K38: 5 | L38: 5 | M38: 5 | N38: 2014-19 Distribution Determination | O38: 8 Buller Street | Q38: PORT MACQUARIE | R38: NSW | S38: 2444 | T38: PO Box 5730 | V38: PORT MACQUARIE | W38: NSW | X38: 2444 | Y38: Catherine Waddell | Z38: 02 6338 3553 | AA38: catherine.waddell@essentialenergy.com.au | AB38: NO | AC38: NO | AD38: YES | AE38: YES | AF38: NO | AH38: CBD | AI38: Urban | AJ38: Short rural | AK38: Long rural | AM38: YES | AN38: Essential Energy
B39: Jemena Electricity | C39: Jemena Electricity | D39: 82064651083 | E39: Vic | F39: Electricity | G39: Distribution | H39: Revenue cap | I39: Calendar | J39: December | K39: 5 | L39: 5 | M39: 2 | N39: 2016-20 Distribution Determination | O39: Level 16 | P39: 567 Collins Street | Q39: MELBOURNE | R39: VIC | S39: 3000 | T39: PO Box 16182 | V39: MELBOURNE | W39: VIC | X39: 8001 | Y39: Matthew Serpell | Z39: 03 9173 8231 | AA39: matthew.serpell@jemena.com.au | AB39: NO | AC39: YES | AD39: YES | AE39: NO | AF39: NO | AH39: CBD | AI39: Urban | AJ39: Short rural | AK39: Long rural | AM39: YES | AN39: Jemena Electricity
B40: JGN | C40: Jemena Gas Networks (NSW) Ltd | D40: 003 004 322 | E40: NSW | F40: Gas | G40: Distribution | H40: Weighted average price cap | I40: Financial | J40: June | K40: 5 | L40: 5 | Y40: please provide contact details | AB40: NO | AC40: NO | AD40: NO | AE40: NO | AF40: NO | AH40: CBD | AI40: Urban | AJ40: Short rural | AK40: Long rural | AM40: NO | AN40: JGN
B41: Multinet Gas | C41: Multinet Gas (DB No.1) Pty Ltd (ACN 086 026 986), Multinet Gas (DB No.2) Pty Ltd (ACN 086 230 122) | D41: 086026986 | E41: Vic | F41: Gas | G41: Distribution | H41: Weighted average price cap | I41: Calendar | J41: December | K41: 5 | L41: 5 | M41: x | O41: 43-45 Centreway | Q41: MT WAVERLEY | R41: Vic | S41: 3149 | Y41: Andrew Schille | Z41: 03 8846 9860 | AA41: andrew.schille@ue.com.au | AB41: NO | AC41: NO | AD41: NO | AE41: NO | AF41: NO | AH41: CBD | AI41: Urban | AJ41: Short rural | AK41: Long rural | AM41: NO | AN41: Multinet Gas
B42: Murraylink | C42: Murraylink | D42: 79181207909 | E42: SA | F42: Electricity | G42: Transmission | H42: Revenue cap | I42: Financial | J42: June | K42: 5 | L42: 5 | M42: 5 | N42: transmission determination | O42: Level 19 | P42: 580 George Street | Q42: SYDNEY | R42: NSW | S42: 2000 | T42: PO Box R41 | V42: ROYAL EXCHANGE | W42: NSW | X42: 1225 | Y42: Scott Young | Z42: 02 9275 0031 | AA42: scott.young@apa.com.au | AB42: NO | AC42: NO | AD42: NO | AE42: NO | AF42: NO | AH42: CBD | AI42: Urban | AJ42: Short rural | AK42: Long rural | AM42: NO | AN42: Murraylink
B43: Power and Water | C43: Power and Water Corporation | D43: 15947352360 | E43: NT | F43: Electricity | G43: Distribution | H43: Revenue cap | I43: Financial | J43: June | K43: 5 | L43: 5 | M43: x | N43: distribution determination | O43: GPO Box 1921 | Q43: DARWIN | R43: NT | S43: 801 | T43: GPO Box 1921 | V43: DARWIN | W43: NT | X43: 801 | Y43: Lucy Moon | Z43: 08 8924 5822 | AA43: Lucy.Moon@powerwater.com.au | AB43: YES | AC43: YES | AD43: YES | AE43: YES | AF43: NO | AH43: CBD | AI43: Urban | AJ43: Short rural | AK43: Long rural | AM43: NO | AN43: Power and Water
B44: Powercor Australia | C44: Powercor Australia | D44: 89064651109 | E44: Vic | F44: Electricity | G44: Distribution | H44: Revenue cap | I44: Calendar | J44: December | K44: 5 | L44: 5 | M44: 2 | N44: 2016-20 Distribution Determination | O44: 40 Market Street | Q44: MELBOURNE | R44: Vic | S44: 3000 | T44: Locked bag 14090 | V44: MELBOURNE | W44: VIC | X44: 8001 | Y44: Hannah Williams | Z44: 03 9683 4088 | AA44: hwilliams@powercor.com.au | AB44: NO | AC44: NO | AD44: YES | AE44: YES | AF44: NO | AH44: CBD | AI44: Urban | AJ44: Short rural | AK44: Long rural | AM44: YES | AN44: Powercor Australia
B45: Powerlink | C45: Queensland Electricity Transmission Corporation Limited trading as Powerlink Queensland | D45: 82078849233 | E45: Qld | F45: Electricity | G45: Transmission | H45: Revenue cap | I45: Financial | J45: June | K45: 5 | L45: 5 | M45: 5 | N45: transmission determination | O45: 33 Harold St | Q45: VIRGINIA | R45: Qld | S45: 4014 | T45: PO Box 1193 | V45: VIRGINIA | W45: QLD | X45: 4014 | Y45: Jennifer Harris | Z45: 07 3860 2667 | AA45: jharris@powerlink.com.au | AB45: NO | AC45: NO | AD45: NO | AE45: NO | AF45: NO | AH45: CBD | AI45: Urban | AJ45: Short rural | AK45: Long rural | AM45: NO | AN45: Powerlink
B46: Roma to Brisbane Pipeline | C46: APT Petroleum Pipelines Limited t/a Roma to Brisbane Pipeline | D46: 009 737 393 | E46: Qld | F46: Gas | G46: Transmission | H46: Weighted average price cap | I46: Financial | J46: June | K46: 5 | L46: 5 | M46: x | N46: n/a | O46: 580 George Street | Q46: SYDNEY | R46: NSW | S46: 2000 | T46: PO Box R41 | V46: ROYAL EXCHANGE | W46: NSW | X46: 1225 | Y46: Mark Allen | Z46: 02 9275 0010 | AA46: mark.allen@apa.com.au | AB46: NO | AC46: NO | AD46: NO | AE46: NO | AF46: NO | AH46: CBD | AI46: Urban | AJ46: Short rural | AK46: Long rural | AM46: NO | AN46: Roma to Brisbane Pipeline
B47: SA Power Networks | C47: SA Power Networks | D47: 13332330749 | E47: SA | F47: Electricity | G47: Distribution | H47: Revenue cap | I47: Financial | J47: June | K47: 5 | L47: 5 | M47: 5 | N47: 2015-20 Distribution Determination | O47: 1 Anzac Highway | Q47: KESWICK | R47: SA | S47: 5035 | T47: GPO Box 77 | V47: ADELAIDE | W47: SA | X47: 5000 | Y47: Richard Sibly | Z47: 08 8404 5613 | AA47: richard.sibly@sapowernetworks.com.au | AB47: NO | AC47: NO | AD47: YES | AE47: YES | AF47: NO | AH47: CBD | AI47: Urban | AJ47: Short rural | AK47: Long rural | AM47: NO | AN47: SA Power Networks
B48: TasNetworks (D) | C48: TasNetworks (D) | D48: 24167357299 | E48: Tas | F48: Electricity | G48: Distribution | H48: Revenue cap | I48: Financial | J48: June | K48: 5 | L48: 5 | M48: 5 | N48: distribution determination | O48: 1-7 Maria Street | Q48: LENAH VALLEY | R48: Tas | S48: 7008 | T48: PO Box 606 | V48: MOONAH | W48: Tas | X48: 7009 | Y48: John Sayers | Z48: 03 6271 6469 | AA48: john.sayers@tasnetworks.com.au | AB48: YES | AC48: YES | AD48: YES | AE48: YES | AF48: YES | AH48: Critical Infrastructure | AI48: High density commercial | AJ48: Urban | AK48: High density rural | AL48: Low density rural | AM48: YES | AN48: TasNetworks (D)
B49: TasNetworks (T) | C49: TasNetworks (T) | D49: 24167357299 | E49: Tas | F49: Electricity | G49: Transmission | H49: Revenue cap | I49: Financial | J49: June | K49: 5 | L49: 5 | M49: 5 | N49: transmission determination | O49: 1-7 Maria Street | Q49: LENAH VALLEY | R49: Tas | S49: 7008 | T49: PO Box 606 | V49: MOONAH | W49: Tas | X49: 7009 | Y49: John Sayers | Z49: 03 6271 6469 | AA49: john.sayers@tasnetworks.com.au | AB49: NO | AC49: NO | AD49: NO | AE49: NO | AF49: NO | AH49: CBD | AI49: Urban | AJ49: Short rural | AK49: Long rural | AM49: NO | AN49: TasNetworks (T)
B50: TransGrid | C50: NSW Electricity Networks Operations Pty Ltd trading as TransGrid | D50: 70 250 995 390 | E50: NSW | F50: Electricity | G50: Transmission | H50: Revenue cap | I50: Financial | J50: June | K50: 4 | L50: 5 | M50: 5 | N50: transmission determination | O50: 180 Thomas Street | Q50: SYDNEY | R50: NSW | S50: 2000 | T50: PO Box A1000 | V50: SYDNEY SOUTH | W50: NSW | X50: 1235 | Y50: Garrie Chubb | Z50: 0408 210 221 | AA50: garrie.chubb@transgrid.com.au | AB50: NO | AC50: NO | AD50: NO | AE50: NO | AF50: NO | AH50: CBD | AI50: Urban | AJ50: Short rural | AK50: Long rural | AM50: NO | AN50: TransGrid
B51: United Energy | C51: United Energy | D51: 70064651029 | E51: Vic | F51: Electricity | G51: Distribution | H51: Revenue cap | I51: Calendar | J51: December | K51: 5 | L51: 5 | M51: 2 | N51: 2016-20 Distribution Determination | O51: Level 3 | P51: 6 Nexus Court | Q51: MULGRAVE | R51: Vic | S51: 3149 | T51: PO Box 449 | V51: MOUNT WAVERLEY | W51: VIC | X51: 3170 | Y51: Mathew Abraham | Z51: 03 8846 9758 | AA51: mathew.abraham@ue.com.au | AB51: NO | AC51: NO | AD51: YES | AE51: NO | AF51: NO | AH51: CBD | AI51: Urban | AJ51: Short rural | AK51: Long rural | AM51: YES | AN51: United Energy
Z54: For EB & Reset RINs only | AE54: For AARs only
B55: The Reg Year Ending (dms_RYE) must be set to the last year of the regulatory period. For forecast data is is usually (FRCP_y5) for actual it is a single year (CRY). For historical actual data the RYE will need to be set manually in the business details sheet by setting the dms_Multiyear_flag to 1 and putting the correct value in 'dms_Specified_FinalYear. See cells C67:C68 | N55: Drop down selector box for CA & Reset RINs. | O55: For CA & Reset RINs only | Z55: for DNSP only | AE55: For DNSPs only
B56: dms_Model_List | C56: dms_Worksheet_List | E56: dms_RYE_Formula_Result | N56: dms_0203_ProjectType | O56: dms_020303_01_UOM | P56: dms_020501_01_UOM | Q56: dms_020501_02_UOM | R56: dms_020501_03_UOM | S56: dms_020501_04_UOM | T56: dms_020603_01_UOM | U56: dms_020701_01_UOM | V56: dms_020701_02_UOM | W56: dms_020701_01_Rows | X56: dms_040102_01_UOM | Y56: dms_040102_04_UOM | Z56: dms_030601_01_UOM | AA56: dms_030601_02_UOM | AB56: dms_030701_01_UOM | AC56: dms_030702_01_UOM | AD56: dms_030703_01_UOM | AE56: dms_030605_UOM | AF56: dms_03060703_UOM
B57: ARR | C57: ANNUAL REPORTING STATEMENT | E57: =LEFT(dms_SingleYear_FinalYear_Result,2)&RIGHT(dms_SingleYear_FinalYear_Result,2) -> 2009 | F57: =LEFT(dms_SingleYear_FinalYear_Result,2)&RIGHT(dms_SingleYear_FinalYear_Result,2) | H57: Formula errors are OK | N57: New line on new route - single circuit | O57: Circuit line length in km | P57: 0's | Q57: 0's | R57: 0's | S57: 0's | T57: 0's | U57: km | V57: km | W57: Route line length within zone | X57: 0's | Y57: days | Z57: minutes/customer | AA57: minutes/customer | AB57: Customer / km | AC57: % | AD57: km | AE57: number | AF57: number
B58: CA | C58: CATEGORY ANALYSIS | E58: =LEFT(dms_SingleYear_FinalYear_Result,2)&RIGHT(dms_SingleYear_FinalYear_Result,2) -> 2009 | F58: =LEFT(dms_SingleYear_FinalYear_Result,2)&RIGHT(dms_SingleYear_FinalYear_Result,2) | H58: Formula errors are OK | N58: New line on new route - dual circuit | O58: Circuit line length in km | P58: 0's | Q58: 0's | R58: 0's | S58: 0's | T58: 0's | U58: 0's | V58: 0's | W58: Number of maintenance spans | X58: 0's | Y58: 0's | Z58: minutes/customer | AA58: minutes/customer | AB58: MWh/customer | AC58: Number of spans | AE58: number | AF58: number
B59: CPI | C59: CPI | N59: New line on new route - other | O59: Circuit line length in km | P59: MVA added | Q59: MVA added | R59: MVA added | S59: MVA added | T59: 0's | U59: km | V59: km | W59: Total length of maintenance spans | X59: 0's | Y59: $0s | Z59: interruptions/customer | AA59: interruptions/customer | AB59: kVA / customer | AC59: Number of spans | AE59: number | AF59: number
B60: EB | C60: ECONOMIC BENCHMARKING | E60: =LEFT(dms_SingleYear_FinalYear_Result,2)&RIGHT(dms_SingleYear_FinalYear_Result,2) -> 2009 | F60: =LEFT(dms_SingleYear_FinalYear_Result,2)&RIGHT(dms_SingleYear_FinalYear_Result,2) | H60: Formula errors are OK | N60: Line rebuild over existing route - single circuit | O60: Circuit line length in km | P60: 0's | Q60: 0's | R60: 0's | S60: 0's | T60: 0's | U60: km | V60: km | W60: Length of vegetation corridors | X60: $0s | Y60: 0's | Z60: interruptions/customer | AA60: interruptions/customer | AC60: Number of spans | AE60: number | AF60: number
B61: PTRM | C61: POST TAX REVENUE MODEL | E61: =LEFT(dms_MultiYear_FinalYear_Result,2)&RIGHT(dms_MultiYear_FinalYear_Result,2) -> 2020 | F61: =LEFT(dms_MultiYear_FinalYear_Result,2)&RIGHT(dms_MultiYear_FinalYear_Result,2) | N61: Line rebuild over existing route - dual circuit | O61: Number | P61: total spend $0s | Q61: total spend $0s | R61: total spend $0s | S61: total spend $0s | T61: (per cent) | U61: 0's | V61: 0's | W61: Average number of trees per maintenance span | AC61: Number of spans | AE61: number | AF61: (per cent)
B62: Reset | C62: REGULATORY REPORTING STATEMENT | E62: =LEFT(dms_MultiYear_FinalYear_Result,2)&RIGHT(dms_MultiYear_FinalYear_Result,2) -> 2020 | F62: =LEFT(dms_MultiYear_FinalYear_Result,2)&RIGHT(dms_MultiYear_FinalYear_Result,2) | H62: Formula errors are OK | N62: Reconductor - Single circuit | O62: Number | P62: net circuit km added | Q62: net circuit km added | R62: net circuit km added | S62: net circuit km added | U62: years | V62: years | W62: Average frequency of cutting cycle | AC62: Years | AE62: number
B63: RFM | C63: ROLL FORWARD MODEL | E63: =LEFT(dms_CRCP_FinalYear_Result,2)&RIGHT(dms_CRCP_FinalYear_Result,2) -> 2020 | F63: =LEFT(dms_CRCP_FinalYear_Result,2)&RIGHT(dms_CRCP_FinalYear_Result,2) | N63: Reconductor - Dual circuit | O63: Number | P63: total spend $0s | Q63: total spend $0s | R63: total spend $0s | S63: total spend $0s | AC63: Years | AE63: number
B64: WACC | C64: WEIGHTED AVERAGE COST OF CAPITAL | E64: =LEFT(dms_MultiYear_FinalYear_Result,2)&RIGHT(dms_MultiYear_FinalYear_Result,2) -> 2020 | F64: =LEFT(dms_MultiYear_FinalYear_Result,2)&RIGHT(dms_MultiYear_FinalYear_Result,2) | N64: Other | P64: net circuit km added | Q64: net circuit km added | R64: net circuit km added | S64: net circuit km added | AC64: Trees | AE64: number
P65: total spend $0s | Q65: total spend $0s | R65: total spend $0s | S65: total spend $0s | AC65: Trees | AE65: number
B66: dms_DataQuality_List | P66: 0's | R66: $0s | AC66: Defects | AE66: number
B67: Actual | P67: 0's | AC67: Defects | AE67: number
B68: Estimate | P68: 0's | AC68: Spans | AE68: number
B69: Consolidated | P69: $0s | AC69: km | AE69: (per cent)
B70: Recast | AC70: Spans | AE70: (per cent)
B71: Public
B73: For all files either AER or business needs to be able to specify the type of submission | C73: For PTRM & RFM templates we must provide a choice in case they change their form of control - otherwise it is drawn from the business specific lookup table above. | O73: For PTRM files - this field set the text for the named range "DMS_Xfactor" which in all cases is simply the text "x factors" - this saves putting in each old gas PTRM file | Z73: for TNSP only
B74: dms_SourceList | C74: dms_FormControl_Choices | O74: DMS_Xfactor | Z74: dms_030601_01_UOM | AB74: dms_030701_01_UOM | AC74: dms_030702_01_UOM
B75: After appeal | C75: Revenue cap | O75: x factors | Z75: % | AB75: Number of spans | AC75: km
B76: Draft decision | C76: Revenue yield | Z76: number | AB76: Years | AC76: %
B77: Final decision | C77: Weighted average price cap | Z77: number | AB77: Trees | AC77: km
B78: PTRM update 1 | Z78: % | AB78: Defects | AC78: number
B79: PTRM update 2 | Z79: number | AB79: Number of spans
B80: PTRM update 3 | Z80: number | AB80: km
B81: PTRM update 4 | Z81: % | AB81: km
B82: PTRM update 5 | Z82: number | AB82: Number of spans
B83: PTRM update 6 | Z83: number
B84: PTRM update 7 | Z84: %
B85: Regulatory proposal | Z85: number
B86: Reporting | Z86: %
B87: Revised regulatory proposal | Z87: number
Z88: %
Z89: number
B93: Reason for interruption | C93: dms_Reason_Interruption_Detailed | D93: dms_Reason_Interruption | E93: dms_STPIS_Exclusion_List | F93: dms_020301_ProjectType_List | G93: dms_020302_ProjectType_List
B94: Animal | C94: Animal impact | D94: Animal | E94: Weather | F94: New substation establishment | G94: New line on new route - single circuit
C95: Animal nesting/burrowing, etc and other | D95: Asset failure | E95: Equipment failure | F95: Capacity upgrade | G95: New line on new route - dual circuit
C96: Other | D96: Other | E96: Operational error | F96: Voltage upgrade | G96: New line on new route - other
B97: Asset failure | C97: LV | D97: Overloads | E97: Vegetation | F97: Other | G97: Line rebuild over existing route - single circuit
C98: Distribution substation | D98: Planned | E98: Animals | G98: Line rebuild over existing route - dual circuit
C99: HV | D99: Network business | E99: Third party impacts | G99: Reconductor - Single circuit
C100: Zone substation | D100: Third party | E100: Transmission failure | G100: Reconductor - Dual circuit
C101: Subtransmission | D101: Unknown | E101: Load shedding | G101: Reconductor - Other
B102: Other | C102: insert description of 'other' | D102: Vegetation | E102: Inter-distributor connection failure | G102: Line upgrade - raising/retensoring
B103: Overloads | C103: - | D103: Weather | E103: Other | G103: Line upgrade - voltage upgrade
B104: Planned | C104: - | D104: 2 - STPIS Exclusion (3.3)(a) | G104: Line upgrade - capacity
B105: Network business | C105: Network error | D105: 3 - STPIS Exclusion (3.3)(a) | G105: String spare circuit
C106: Switching and protection error | D106: 4 - STPIS Exclusion (3.3)(a) | G106: Other
B107: Third party | C107: Fire | D107: 5 - STPIS Exclusion (3.3)(a)
C108: Other | D108: 6 - STPIS Exclusion (3.3)(a)
C109: Dig-in | D109: 7 - STPIS Exclusion (3.3)(a)
C110: Unauthorised access
C111: Vehicle impact
B112: Unknown | C112: Unknown
B113: Vegetation | C113: Blow-in/Fall-in - NSP responsibility
C114: Grow-in - NSP responsibility
C115: Blow-in/Fall-in - Other responsible party
C116: Grow-in - Other responsible party
B117: Weather
B118: 2 - STPIS Exclusion (3.3)(a)
B119: 3 - STPIS Exclusion (3.3)(a)
B120: 4 - STPIS Exclusion (3.3)(a)
B121: 5 - STPIS Exclusion (3.3)(a)
B122: 6 - STPIS Exclusion (3.3)(a)
B123: 7 - STPIS Exclusion (3.3)(a)
B131: These are indeces and lookup values for various dates. All step from the value placed in FRCP_y1 on the business and other details worksheet | O131: These date tables are currently used in the Recast templates to provide column headings and conditional formatting
B132: dms_FRCPlength_Num_List | C132: dms_FinalYear_List | D132: dms_CRCPlength_Num_List | E132: dms_CFinalYear_List | F132: dms_FRCP_years | H132: dms_CRCP_years | J132: dms_CRCP_index | L132: dms_Financial_Years | M132: dms_Calendar_Years | O132: CRY from input cell on business sheet | P132: CRY - financial | Q132: dms_FinYears | R132: CRY calendar | S132: dms_CalYears
B133: 1 | C133: dms_FRCP_y1 | D133: 1 | E133: CRCP_y1 | F133: =FRCP_y1 -> 2020-21 | G133: dms_FRCP_y1 | H133: =IF(dms_RPT="financial",VALUE(LEFT(dms_FRCP_y1,4)-1)&"-"&TEXT(VALUE(MID(dms_FRCP_y1,3,2)),"00"),VALUE(LEFT(dms_FRCP_y1,4)-1)) -> 2019-20 | I133: dms_CRCP_yZ | J133: 1 | L133: 2005-06 | M133: 2006 | O133: =CRY -> 2008-09 | P133: =VALUE(LEFT(CRY,4))&"-"&TEXT(MID(CRY,3,2)+1,"00") -> 2008-09 | Q133: dms_CRYf_y1 | R133: =VALUE(LEFT(CRY,4)+1) -> 2009 | S133: dms_CRYc_y1
B134: 2 | C134: dms_FRCP_y2 | D134: 2 | E134: CRCP_y2 | F134: =IF(dms_RPT="financial",VALUE(LEFT(dms_FRCP_y1,4)+1)&"-"&TEXT(VALUE(RIGHT(dms_FRCP_y1,2)+1),"00"),VALUE(LEFT(dms_FRCP_y1,4)+1)) -> 2021-22 | G134: dms_FRCP_y2 | H134: =IF(dms_RPT="financial",VALUE(LEFT(dms_CRCP_yZ,4)-1)&"-"&TEXT(VALUE(MID(dms_CRCP_yZ,3,2)),"00"),VALUE(LEFT(dms_CRCP_yZ,4)-1)) -> 2018-19 | I134: dms_CRCP_yY | J134: 2 | L134: 2006-07 | M134: 2007 | P134: =VALUE(LEFT(dms_CRYf_y1,4)+1)&"-"&TEXT(MID(dms_CRYf_y1,3,2)+2,"00") -> 2009-10 | Q134: dms_CRYf_y2 | R134: =VALUE(LEFT(dms_CRYc_y1,4)+1) -> 2010 | S134: dms_CRYc_y2
B135: 3 | C135: dms_FRCP_y3 | D135: 3 | E135: CRCP_y3 | F135: =IF(dms_RPT="financial",VALUE(LEFT(dms_FRCP_y2,4)+1)&"-"&TEXT(VALUE(RIGHT(dms_FRCP_y2,2)+1),"00"),VALUE(LEFT(dms_FRCP_y2,4)+1)) -> 2022-23 | G135: dms_FRCP_y3 | H135: =IF(dms_RPT="financial",VALUE(LEFT(dms_CRCP_yY,4)-1)&"-"&TEXT(VALUE(MID(dms_CRCP_yY,3,2)),"00"),VALUE(LEFT(dms_CRCP_yY,4)-1)) -> 2017-18 | I135: dms_CRCP_yX | J135: 3 | L135: 2007-08 | M135: 2008 | P135: =VALUE(LEFT(dms_CRYf_y2,4)+1)&"-"&TEXT(MID(dms_CRYf_y2,3,2)+2,"00") -> 2010-11 | Q135: dms_CRYf_y3 | R135: =VALUE(LEFT(dms_CRYc_y2,4)+1) -> 2011 | S135: dms_CRYc_y3
B136: 4 | C136: dms_FRCP_y4 | D136: 4 | E136: CRCP_y4 | F136: =IF(dms_RPT="financial",VALUE(LEFT(dms_FRCP_y3,4)+1)&"-"&TEXT(VALUE(RIGHT(dms_FRCP_y3,2)+1),"00"),VALUE(LEFT(dms_FRCP_y3,4)+1)) -> 2023-24 | G136: dms_FRCP_y4 | H136: =IF(dms_RPT="financial",VALUE(LEFT(dms_CRCP_yX,4)-1)&"-"&TEXT(VALUE(MID(dms_CRCP_yX,3,2)),"00"),VALUE(LEFT(dms_CRCP_yX,4)-1)) -> 2016-17 | I136: dms_CRCP_yW | J136: 4 | L136: 2008-09 | M136: 2009 | P136: =VALUE(LEFT(dms_CRYf_y3,4)+1)&"-"&TEXT(MID(dms_CRYf_y3,3,2)+2,"00") -> 2011-12 | Q136: dms_CRYf_y4 | R136: =VALUE(LEFT(dms_CRYc_y3,4)+1) -> 2012 | S136: dms_CRYc_y4
B137: 5 | C137: dms_FRCP_y5 | D137: 5 | E137: CRCP_y5 | F137: =IF(dms_RPT="financial",VALUE(LEFT(dms_FRCP_y4,4)+1)&"-"&TEXT(VALUE(RIGHT(dms_FRCP_y4,2)+1),"00"),VALUE(LEFT(dms_FRCP_y4,4)+1)) -> 2024-25 | G137: dms_FRCP_y5 | H137: =IF(dms_RPT="financial",VALUE(LEFT(dms_CRCP_yW,4)-1)&"-"&TEXT(VALUE(MID(dms_CRCP_yW,3,2)),"00"),VALUE(LEFT(dms_CRCP_yW,4)-1)) -> 2015-16 | I137: dms_CRCP_yV | J137: 5 | L137: 2009-10 | M137: 2010 | P137: =VALUE(LEFT(dms_CRYf_y4,4)+1)&"-"&TEXT(MID(dms_CRYf_y4,3,2)+2,"00") -> 2012-13 | Q137: dms_CRYf_y5 | R137: =VALUE(LEFT(dms_CRYc_y4,4)+1) -> 2013 | S137: dms_CRYc_y5
B138: 6 | C138: dms_FRCP_y6 | D138: 6 | E138: CRCP_y6 | F138: =IF(dms_RPT="financial",VALUE(LEFT(dms_FRCP_y5,4)+1)&"-"&TEXT(VALUE(RIGHT(dms_FRCP_y5,2)+1),"00"),VALUE(LEFT(dms_FRCP_y5,4)+1)) -> 2025-26 | G138: dms_FRCP_y6 | H138: =IF(dms_RPT="financial",VALUE(LEFT(dms_CRCP_yV,4)-1)&"-"&TEXT(VALUE(MID(dms_CRCP_yV,3,2)),"00"),VALUE(LEFT(dms_CRCP_yV,4)-1)) -> 2014-15 | I138: dms_CRCP_yU | J138: 6 | L138: 2010-11 | M138: 2011 | P138: =VALUE(LEFT(dms_CRYf_y5,4)+1)&"-"&TEXT(MID(dms_CRYf_y5,3,2)+2,"00") -> 2013-14 | Q138: dms_CRYf_y6 | R138: =VALUE(LEFT(dms_CRYc_y5,4)+1) -> 2014 | S138: dms_CRYc_y6
B139: 7 | C139: dms_FRCP_y7 | D139: 7 | E139: CRCP_y7 | F139: =IF(dms_RPT="financial",VALUE(LEFT(dms_FRCP_y6,4)+1)&"-"&TEXT(VALUE(RIGHT(dms_FRCP_y6,2)+1),"00"),VALUE(LEFT(dms_FRCP_y6,4)+1)) -> 2026-27 | G139: dms_FRCP_y7 | H139: =IF(dms_RPT="financial",VALUE(LEFT(dms_CRCP_yU,4)-1)&"-"&TEXT(VALUE(MID(dms_CRCP_yU,3,2)),"00"),VALUE(LEFT(dms_CRCP_yU,4)-1)) -> 2013-14 | I139: dms_CRCP_yT | J139: 7 | L139: 2011-12 | M139: 2012 | P139: =VALUE(LEFT(dms_CRYf_y6,4)+1)&"-"&TEXT(MID(dms_CRYf_y6,3,2)+2,"00") -> 2014-15 | Q139: dms_CRYf_y7 | R139: =VALUE(LEFT(dms_CRYc_y6,4)+1) -> 2015 | S139: dms_CRYc_y7
B140: 8 | C140: dms_FRCP_y8 | D140: 8 | E140: CRCP_y8 | F140: =IF(dms_RPT="financial",VALUE(LEFT(dms_FRCP_y7,4)+1)&"-"&TEXT(VALUE(RIGHT(dms_FRCP_y7,2)+1),"00"),VALUE(LEFT(dms_FRCP_y7,4)+1)) -> 2027-28 | G140: dms_FRCP_y8 | H140: =IF(dms_RPT="financial",VALUE(LEFT(dms_CRCP_yT,4)-1)&"-"&TEXT(VALUE(MID(dms_CRCP_yT,3,2)),"00"),VALUE(LEFT(dms_CRCP_yT,4)-1)) -> 2012-13 | I140: dms_CRCP_yS | J140: 8 | L140: 2012-13 | M140: 2013 | P140: =VALUE(LEFT(dms_CRYf_y7,4)+1)&"-"&TEXT(MID(dms_CRYf_y7,3,2)+2,"00") -> 2015-16 | Q140: dms_CRYf_y8 | R140: =VALUE(LEFT(dms_CRYc_y7,4)+1) -> 2016 | S140: dms_CRYc_y8
B141: 9 | C141: dms_FRCP_y9 | D141: 9 | E141: CRCP_y9 | F141: =IF(dms_RPT="financial",VALUE(LEFT(dms_FRCP_y8,4)+1)&"-"&TEXT(VALUE(RIGHT(dms_FRCP_y8,2)+1),"00"),VALUE(LEFT(dms_FRCP_y8,4)+1)) -> 2028-29 | G141: dms_FRCP_y9 | H141: =IF(dms_RPT="financial",VALUE(LEFT(dms_CRCP_yS,4)-1)&"-"&TEXT(VALUE(MID(dms_CRCP_yS,3,2)),"00"),VALUE(LEFT(dms_CRCP_yS,4)-1)) -> 2011-12 | I141: dms_CRCP_yR | J141: 9 | L141: 2013-14 | M141: 2014 | P141: =VALUE(LEFT(dms_CRYf_y8,4)+1)&"-"&TEXT(MID(dms_CRYf_y8,3,2)+2,"00") -> 2016-17 | Q141: dms_CRYf_y9 | R141: =VALUE(LEFT(dms_CRYc_y8,4)+1) -> 2017 | S141: dms_CRYc_y9
B142: 10 | C142: dms_FRCP_y10 | D142: 10 | E142: CRCP_y10 | F142: =IF(dms_RPT="financial",VALUE(LEFT(dms_FRCP_y9,4)+1)&"-"&TEXT(VALUE(RIGHT(dms_FRCP_y9,2)+1),"00"),VALUE(LEFT(dms_FRCP_y9,4)+1)) -> 2029-30 | G142: dms_FRCP_y10 | H142: =IF(dms_RPT="financial",VALUE(LEFT(dms_CRCP_yR,4)-1)&"-"&TEXT(VALUE(MID(dms_CRCP_yR,3,2)),"00"),VALUE(LEFT(dms_CRCP_yR,4)-1)) -> 2010-11 | I142: dms_CRCP_yQ | J142: 10 | L142: 2014-15 | M142: 2015 | P142: =VALUE(LEFT(dms_CRYf_y9,4)+1)&"-"&TEXT(MID(dms_CRYf_y9,3,2)+2,"00") -> 2017-18 | Q142: dms_CRYf_y10 | R142: =VALUE(LEFT(dms_CRYc_y9,4)+1) -> 2018 | S142: dms_CRYc_y10
B143: 11 | C143: dms_FRCP_y11 | D143: 11 | E143: CRCP_y11 | F143: =IF(dms_RPT="financial",VALUE(LEFT(dms_FRCP_y10,4)+1)&"-"&TEXT(VALUE(RIGHT(dms_FRCP_y10,2)+1),"00"),VALUE(LEFT(dms_FRCP_y10,4)+1)) -> 2030-31 | G143: dms_FRCP_y11 | H143: =IF(dms_RPT="financial",VALUE(LEFT(dms_CRCP_yQ,4)-1)&"-"&TEXT(VALUE(MID(dms_CRCP_yQ,3,2)),"00"),VALUE(LEFT(dms_CRCP_yQ,4)-1)) -> 2009-10 | I143: dms_CRCP_yP | J143: 11 | L143: 2015-16 | M143: 2016 | P143: =VALUE(LEFT(dms_CRYf_y10,4)+1)&"-"&TEXT(MID(dms_CRYf_y10,3,2)+2,"00") -> 2018-19 | Q143: dms_CRYf_y11 | R143: =VALUE(LEFT(dms_CRYc_y10,4)+1) -> 2019 | S143: dms_CRYc_y11
B144: 12 | C144: dms_FRCP_y12 | D144: 12 | E144: CRCP_y12 | F144: =IF(dms_RPT="financial",VALUE(LEFT(dms_FRCP_y11,4)+1)&"-"&TEXT(VALUE(RIGHT(dms_FRCP_y11,2)+1),"00"),VALUE(LEFT(dms_FRCP_y11,4)+1)) -> 2031-32 | G144: dms_FRCP_y12 | H144: =IF(dms_RPT="financial",VALUE(LEFT(dms_CRCP_yP,4)-1)&"-"&TEXT(VALUE(MID(dms_CRCP_yP,3,2)),"00"),VALUE(LEFT(dms_CRCP_yP,4)-1)) -> 2008-09 | I144: dms_CRCP_yO | J144: 12 | L144: 2016-17 | M144: 2017 | P144: =VALUE(LEFT(dms_CRYf_y11,4)+1)&"-"&TEXT(MID(dms_CRYf_y11,3,2)+2,"00") -> 2019-20 | Q144: dms_CRYf_y12 | R144: =VALUE(LEFT(dms_CRYc_y11,4)+1) -> 2020 | S144: dms_CRYc_y12
B145: 13 | C145: dms_FRCP_y13 | D145: 13 | E145: CRCP_y13 | F145: =IF(dms_RPT="financial",VALUE(LEFT(dms_FRCP_y12,4)+1)&"-"&TEXT(VALUE(RIGHT(dms_FRCP_y12,2)+1),"00"),VALUE(LEFT(dms_FRCP_y12,4)+1)) -> 2032-33 | G145: dms_FRCP_y13 | H145: =IF(dms_RPT="financial",VALUE(LEFT(dms_CRCP_yO,4)-1)&"-"&TEXT(VALUE(MID(dms_CRCP_yO,3,2)),"00"),VALUE(LEFT(dms_CRCP_yO,4)-1)) -> 2007-08 | I145: dms_CRCP_yN | J145: 13 | L145: 2017-18 | M145: 2018 | P145: =VALUE(LEFT(dms_CRYf_y12,4)+1)&"-"&TEXT(MID(dms_CRYf_y12,3,2)+2,"00") -> 2020-21 | Q145: dms_CRYf_y13 | R145: =VALUE(LEFT(dms_CRYc_y12,4)+1) -> 2021 | S145: dms_CRYc_y13
B146: 14 | C146: dms_FRCP_y14 | D146: 14 | E146: CRCP_y14 | F146: =IF(dms_RPT="financial",VALUE(LEFT(dms_FRCP_y13,4)+1)&"-"&TEXT(VALUE(RIGHT(dms_FRCP_y13,2)+1),"00"),VALUE(LEFT(dms_FRCP_y13,4)+1)) -> 2033-34 | G146: dms_FRCP_y14 | H146: =IF(dms_RPT="financial",VALUE(LEFT(dms_CRCP_yN,4)-1)&"-"&TEXT(VALUE(MID(dms_CRCP_yN,3,2)),"00"),VALUE(LEFT(dms_CRCP_yN,4)-1)) -> 2006-07 | I146: dms_CRCP_yM | J146: 14 | L146: 2018-19 | M146: 2019 | P146: =VALUE(LEFT(dms_CRYf_y13,4)+1)&"-"&TEXT(MID(dms_CRYf_y13,3,2)+2,"00") -> 2021-22 | Q146: dms_CRYf_y14 | R146: =VALUE(LEFT(dms_CRYc_y13,4)+1) -> 2022 | S146: dms_CRYc_y14
B147: 15 | C147: dms_FRCP_y15 | D147: 15 | E147: CRCP_y15 | F147: =IF(dms_RPT="financial",VALUE(LEFT(dms_FRCP_y14,4)+1)&"-"&TEXT(VALUE(RIGHT(dms_FRCP_y14,2)+1),"00"),VALUE(LEFT(dms_FRCP_y14,4)+1)) -> 2034-35 | G147: dms_FRCP_y15 | H147: =IF(dms_RPT="financial",VALUE(LEFT(dms_CRCP_yM,4)-1)&"-"&TEXT(VALUE(MID(dms_CRCP_yM,3,2)),"00"),VALUE(LEFT(dms_CRCP_yM,4)-1)) -> 2005-06 | I147: dms_CRCP_yL | J147: 15 | L147: 2019-20 | M147: 2020 | P147: =VALUE(LEFT(dms_CRYf_y14,4)+1)&"-"&TEXT(MID(dms_CRYf_y14,3,2)+2,"00") -> 2022-23 | Q147: dms_CRYf_y15 | R147: =VALUE(LEFT(dms_CRYc_y14,4)+1) -> 2023 | S147: dms_CRYc_y15
L148: 2020-21 | M148: 2021 | P148: =VALUE(LEFT(dms_CRYf_y15,4)+1)&"-"&TEXT(MID(dms_CRYf_y15,3,2)+2,"00") -> 2023-24 | Q148: dms_CRYf_y16 | R148: =VALUE(LEFT(dms_CRYc_y15,4)+1) -> 2024 | S148: dms_CRYc_y16
B149: These are drop down lists for businesses to select the correct FRCP_y1 on the business and other details worksheet. This also populates the column headings in the worksheets | L149: 2021-22 | M149: 2022 | P149: =VALUE(LEFT(dms_CRYf_y16,4)+1)&"-"&TEXT(MID(dms_CRYf_y16,3,2)+2,"00") -> 2024-25 | Q149: dms_CRYf_y17 | R149: =VALUE(LEFT(dms_CRYc_y16,4)+1) -> 2025 | S149: dms_CRYc_y17
B150: dms_RCP_fyear_list | C150: dms_CRY_ListF | D150: dms_CRY_ListC | E150: dms_RCP_cyear_list | F150: dms_FRCP_fyear_list | G150: dms_FRCP_ListF | H150: dms_FRCP_ListC | I150: dms_FRCP_cyear_list | L150: 2022-23 | M150: 2023 | P150: =VALUE(LEFT(dms_CRYf_y17,4)+1)&"-"&TEXT(MID(dms_CRYf_y17,3,2)+2,"00") -> 2025-26 | Q150: dms_CRYf_y18 | R150: =VALUE(LEFT(dms_CRYc_y17,4)+1) -> 2026 | S150: dms_CRYc_y18
B151: dms_y1 | C151: =CRY -> 2008-09 | D151: =CRY -> 2008-09 | E151: dms_cy1 | F151: dms_frcp_fy1 | G151: 2010-11 | H151: 2011 | I151: dms_crcp_cy1 | L151: 2023-24 | M151: 2024 | P151: =VALUE(LEFT(dms_CRYf_y18,4)+1)&"-"&TEXT(MID(dms_CRYf_y18,3,2)+2,"00") -> 2026-27 | Q151: dms_CRYf_y19 | R151: =VALUE(LEFT(dms_CRYc_y18,4)+1) -> 2027 | S151: dms_CRYc_y19
B152: dms_y2 | C152: =IF(dms_RPT="financial",VALUE(LEFT(CRY,4)+1)&"-"&TEXT(MID(CRY,3,2)+2,"00"),VALUE(LEFT(CRY,4)+1)) -> 2009-10 | D152: =IF(dms_RPT="financial",VALUE(LEFT(CRY,4)+1)&"-"&TEXT(MID(CRY,3,2)+2,"00"),VALUE(LEFT(CRY,4)+1)) -> 2009-10 | E152: dms_cy2 | F152: dms_frcp_fy2 | G152: 2011-12 | H152: 2012 | I152: dms_crcp_cy2 | L152: 2024-25 | M152: 2025 | P152: =VALUE(LEFT(dms_CRYf_y19,4)+1)&"-"&TEXT(MID(dms_CRYf_y19,3,2)+2,"00") -> 2027-28 | Q152: dms_CRYf_y20 | R152: =VALUE(LEFT(dms_CRYc_y19,4)+1) -> 2028 | S152: dms_CRYc_y20
B153: dms_y3 | C153: =IF(dms_RPT="financial",VALUE(LEFT(dms_fy2,4)+1)&"-"&TEXT(MID(dms_fy2,3,2)+2,"00"),VALUE(LEFT(dms_fy2,4)+1)) -> 2010-11 | D153: =IF(dms_RPT="financial",VALUE(LEFT(dms_fy2,4)+1)&"-"&TEXT(MID(dms_fy2,3,2)+2,"00"),VALUE(LEFT(dms_fy2,4)+1)) -> 2010-11 | E153: dms_cy3 | F153: dms_frcp_fy3 | G153: 2012-13 | H153: 2013 | I153: dms_crcp_cy3 | L153: 2025-26 | M153: 2026
B154: dms_y4 | C154: =IF(dms_RPT="financial",VALUE(LEFT(dms_fy3,4)+1)&"-"&TEXT(MID(dms_fy3,3,2)+2,"00"),VALUE(LEFT(dms_fy3,4)+1)) -> 2011-12 | D154: =IF(dms_RPT="financial",VALUE(LEFT(dms_fy3,4)+1)&"-"&TEXT(MID(dms_fy3,3,2)+2,"00"),VALUE(LEFT(dms_fy3,4)+1)) -> 2011-12 | E154: dms_cy4 | F154: dms_frcp_fy4 | G154: 2013-14 | H154: 2014 | I154: dms_crcp_cy4 | L154: 2026-27 | M154: 2027
B155: dms_y5 | C155: =IF(dms_RPT="financial",VALUE(LEFT(dms_fy4,4)+1)&"-"&TEXT(MID(dms_fy4,3,2)+2,"00"),VALUE(LEFT(dms_fy4,4)+1)) -> 2012-13 | D155: =IF(dms_RPT="financial",VALUE(LEFT(dms_fy4,4)+1)&"-"&TEXT(MID(dms_fy4,3,2)+2,"00"),VALUE(LEFT(dms_fy4,4)+1)) -> 2012-13 | E155: dms_cy5 | F155: dms_frcp_fy5 | G155: 2014-15 | H155: 2015 | I155: dms_crcp_cy5 | L155: 2027-28 | M155: 2028
B156: dms_y6 | C156: =IF(dms_RPT="financial",VALUE(LEFT(dms_fy5,4)+1)&"-"&TEXT(MID(dms_fy5,3,2)+2,"00"),VALUE(LEFT(dms_fy5,4)+1)) -> 2013-14 | D156: =IF(dms_RPT="financial",VALUE(LEFT(dms_fy5,4)+1)&"-"&TEXT(MID(dms_fy5,3,2)+2,"00"),VALUE(LEFT(dms_fy5,4)+1)) -> 2013-14 | E156: dms_cy6 | F156: dms_frcp_fy6 | G156: 2015-16 | H156: 2016 | I156: dms_crcp_cy6 | L156: 2028-29 | M156: 2029
B157: dms_y7 | C157: =IF(dms_RPT="financial",VALUE(LEFT(dms_fy6,4)+1)&"-"&TEXT(MID(dms_fy6,3,2)+2,"00"),VALUE(LEFT(dms_fy6,4)+1)) -> 2014-15 | D157: =IF(dms_RPT="financial",VALUE(LEFT(dms_fy6,4)+1)&"-"&TEXT(MID(dms_fy6,3,2)+2,"00"),VALUE(LEFT(dms_fy6,4)+1)) -> 2014-15 | E157: dms_cy7 | F157: dms_frcp_fy7 | G157: 2016-17 | H157: 2017 | I157: dms_crcp_cy7 | L157: 2029-30 | M157: 2030
B158: dms_y8 | C158: =IF(dms_RPT="financial",VALUE(LEFT(dms_fy7,4)+1)&"-"&TEXT(MID(dms_fy7,3,2)+2,"00"),VALUE(LEFT(dms_fy7,4)+1)) -> 2015-16 | D158: =IF(dms_RPT="financial",VALUE(LEFT(dms_fy7,4)+1)&"-"&TEXT(MID(dms_fy7,3,2)+2,"00"),VALUE(LEFT(dms_fy7,4)+1)) -> 2015-16 | E158: dms_cy8 | F158: dms_frcp_fy8 | G158: 2017-18 | H158: 2018 | I158: dms_crcp_cy8 | L158: 2030-31 | M158: 2031
B159: dms_y9 | C159: =IF(dms_RPT="financial",VALUE(LEFT(dms_fy8,4)+1)&"-"&TEXT(MID(dms_fy8,3,2)+2,"00"),VALUE(LEFT(dms_fy8,4)+1)) -> 2016-17 | D159: =IF(dms_RPT="financial",VALUE(LEFT(dms_fy8,4)+1)&"-"&TEXT(MID(dms_fy8,3,2)+2,"00"),VALUE(LEFT(dms_fy8,4)+1)) -> 2016-17 | E159: dms_cy9 | F159: dms_frcp_fy9 | G159: 2018-19 | H159: 2019 | I159: dms_crcp_cy9 | L159: 2031-32 | M159: 2032
B160: dms_y10 | C160: =IF(dms_RPT="financial",VALUE(LEFT(dms_fy9,4)+1)&"-"&TEXT(MID(dms_fy9,3,2)+2,"00"),VALUE(LEFT(dms_fy9,4)+1)) -> 2017-18 | D160: =IF(dms_RPT="financial",VALUE(LEFT(dms_fy9,4)+1)&"-"&TEXT(MID(dms_fy9,3,2)+2,"00"),VALUE(LEFT(dms_fy9,4)+1)) -> 2017-18 | E160: dms_cy10 | F160: dms_frcp_fy10 | G160: 2019-20 | H160: 2020 | I160: dms_crcp_cy10 | L160: 2032-33 | M160: 2033
B161: dms_y11 | C161: =IF(dms_RPT="financial",VALUE(LEFT(dms_fy10,4)+1)&"-"&TEXT(MID(dms_fy10,3,2)+2,"00"),VALUE(LEFT(dms_fy10,4)+1)) -> 2018-19 | D161: =IF(dms_RPT="financial",VALUE(LEFT(dms_fy10,4)+1)&"-"&TEXT(MID(dms_fy10,3,2)+2,"00"),VALUE(LEFT(dms_fy10,4)+1)) -> 2018-19 | E161: dms_cy11 | F161: dms_frcp_fy11 | G161: 2020-21 | H161: 2021 | I161: dms_crcp_cy11 | L161: 2033-34 | M161: 2034
B162: dms_y12 | C162: =IF(dms_RPT="financial",VALUE(LEFT(dms_fy11,4)+1)&"-"&TEXT(MID(dms_fy11,3,2)+2,"00"),VALUE(LEFT(dms_fy11,4)+1)) -> 2019-20 | D162: =IF(dms_RPT="financial",VALUE(LEFT(dms_fy11,4)+1)&"-"&TEXT(MID(dms_fy11,3,2)+2,"00"),VALUE(LEFT(dms_fy11,4)+1)) -> 2019-20 | E162: dms_cy12 | F162: dms_frcp_fy12 | G162: 2021-22 | H162: 2022 | I162: dms_crcp_cy12 | L162: 2034-35 | M162: 2035
B163: dms_y13 | C163: =IF(dms_RPT="financial",VALUE(LEFT(dms_fy12,4)+1)&"-"&TEXT(MID(dms_fy12,3,2)+2,"00"),VALUE(LEFT(dms_fy12,4)+1)) -> 2020-21 | D163: =IF(dms_RPT="financial",VALUE(LEFT(dms_fy12,4)+1)&"-"&TEXT(MID(dms_fy12,3,2)+2,"00"),VALUE(LEFT(dms_fy12,4)+1)) -> 2020-21 | E163: dms_cy13 | F163: dms_frcp_fy13 | G163: 2022-23 | H163: 2023 | I163: dms_crcp_cy13 | L163: 2035-36 | M163: 2036
B164: dms_y14 | C164: =IF(dms_RPT="financial",VALUE(LEFT(dms_fy13,4)+1)&"-"&TEXT(MID(dms_fy13,3,2)+2,"00"),VALUE(LEFT(dms_fy13,4)+1)) -> 2021-22 | D164: =IF(dms_RPT="financial",VALUE(LEFT(dms_fy13,4)+1)&"-"&TEXT(MID(dms_fy13,3,2)+2,"00"),VALUE(LEFT(dms_fy13,4)+1)) -> 2021-22 | E164: dms_cy14 | F164: dms_frcp_fy14 | G164: 2023-24 | H164: 2024 | I164: dms_crcp_cy14
B165: dms_y15 | C165: =IF(dms_RPT="financial",VALUE(LEFT(dms_fy14,4)+1)&"-"&TEXT(MID(dms_fy14,3,2)+2,"00"),VALUE(LEFT(dms_fy14,4)+1)) -> 2022-23 | D165: =IF(dms_RPT="financial",VALUE(LEFT(dms_fy14,4)+1)&"-"&TEXT(MID(dms_fy14,3,2)+2,"00"),VALUE(LEFT(dms_fy14,4)+1)) -> 2022-23 | E165: dms_cy15 | F165: dms_frcp_fy15 | G165: 2024-25 | H165: 2025 | I165: dms_crcp_cy15
B166: dms_y16 | C166: =IF(dms_RPT="financial",VALUE(LEFT(dms_fy15,4)+1)&"-"&TEXT(MID(dms_fy15,3,2)+2,"00"),VALUE(LEFT(dms_fy15,4)+1)) -> 2023-24 | D166: =IF(dms_RPT="financial",VALUE(LEFT(dms_fy15,4)+1)&"-"&TEXT(MID(dms_fy15,3,2)+2,"00"),VALUE(LEFT(dms_fy15,4)+1)) -> 2023-24 | E166: dms_cy16
B167: dms_y17 | C167: =IF(dms_RPT="financial",VALUE(LEFT(dms_fy16,4)+1)&"-"&TEXT(MID(dms_fy16,3,2)+2,"00"),VALUE(LEFT(dms_fy16,4)+1)) -> 2024-25 | D167: =IF(dms_RPT="financial",VALUE(LEFT(dms_fy16,4)+1)&"-"&TEXT(MID(dms_fy16,3,2)+2,"00"),VALUE(LEFT(dms_fy16,4)+1)) -> 2024-25 | E167: dms_cy17
B168: dms_y18 | C168: =IF(dms_RPT="financial",VALUE(LEFT(dms_fy17,4)+1)&"-"&TEXT(MID(dms_fy17,3,2)+2,"00"),VALUE(LEFT(dms_fy17,4)+1)) -> 2025-26 | D168: =IF(dms_RPT="financial",VALUE(LEFT(dms_fy17,4)+1)&"-"&TEXT(MID(dms_fy17,3,2)+2,"00"),VALUE(LEFT(dms_fy17,4)+1)) -> 2025-26 | E168: dms_cy18
B169: dms_y19 | C169: =IF(dms_RPT="financial",VALUE(LEFT(dms_fy18,4)+1)&"-"&TEXT(MID(dms_fy18,3,2)+2,"00"),VALUE(LEFT(dms_fy18,4)+1)) -> 2026-27 | D169: =IF(dms_RPT="financial",VALUE(LEFT(dms_fy18,4)+1)&"-"&TEXT(MID(dms_fy18,3,2)+2,"00"),VALUE(LEFT(dms_fy18,4)+1)) -> 2026-27 | E169: dms_cy19
B170: dms_y20 | C170: =IF(dms_RPT="financial",VALUE(LEFT(dms_fy19,4)+1)&"-"&TEXT(MID(dms_fy19,3,2)+2,"00"),VALUE(LEFT(dms_fy19)+1)) -> 2027-28 | D170: =IF(dms_RPT="financial",VALUE(LEFT(dms_fy19,4)+1)&"-"&TEXT(MID(dms_fy19,3,2)+2,"00"),VALUE(LEFT(dms_fy19)+1)) -> 2027-28 | E170: dms_cy20
B176: These "row descriptions" are the column headings in the various templates but become row descriptions in the ETL process
C177: Table 6.3 sustained interruptions - row descriptions
C178: dms_060301_CustNo_Affected_Row | D178: dms_060301_Avg_Duration_Sustained_Int_Row | E178: dms_060301_Effect_unplanned_SAIDI_Row | F178: dms_060301_Effect_unplanned_SAIFI_Row
C179: Number of customers affected by the interruption | D179: Average duration of sustained customer interruption | E179: Effect on unplanned SAIDI | F179: Effect on unplanned SAIFI
C183: Table 6.1 telephone answering - row descriptions and start date
C184: dms_060101_Rows | D184: dms_060102_Rows | E184: dms_060101_StartDateTxt
C185: Total number of calls (after removing excluded events) | D185: Number of calls answered within 30 seconds (after excluding excluded events) | E185: =dms_060701_StartDateTxt -> 1-Jul-2008
H189: dms_0603_FeederList | I189: =INDEX(dms_FeederName_1,MATCH(dms_TradingName,dms_TradingName_List)) -> CBD | J189: =INDEX(dms_FeederName_2,MATCH(dms_TradingName,dms_TradingName_List)) -> Urban | K189: =INDEX(dms_FeederName_3,MATCH(dms_TradingName,dms_TradingName_List)) -> Short rural | L189: =INDEX(dms_FeederName_4,MATCH(dms_TradingName,dms_TradingName_List)) -> Long rural
C190: Table 6.7.1 - daily performance data - unplanned - MAIFI -- row descriptions and header named range values
C191: These headings (Lists) are determined from the INDEX/MATCH function on the NSP selected on the Business & other details sheet
B192: dms_060701_Feeder_Header_Lvl4 | C192: =INDEX(dms_FeederName_1,MATCH(dms_TradingName,dms_TradingName_List)) -> CBD | D192: =INDEX(dms_FeederName_1,MATCH(dms_TradingName,dms_TradingName_List)) -> CBD | E192: =INDEX(dms_FeederName_2,MATCH(dms_TradingName,dms_TradingName_List)) -> Urban | F192: =INDEX(dms_FeederName_2,MATCH(dms_TradingName,dms_TradingName_List)) -> Urban | G192: =INDEX(dms_FeederName_3,MATCH(dms_TradingName,dms_TradingName_List)) -> Short rural | H192: =INDEX(dms_FeederName_3,MATCH(dms_TradingName,dms_TradingName_List)) -> Short rural | I192: =INDEX(dms_FeederName_4,MATCH(dms_TradingName,dms_TradingName_List)) -> Long rural | J192: =INDEX(dms_FeederName_4,MATCH(dms_TradingName,dms_TradingName_List)) -> Long rural | K192: =IF((INDEX(dms_FeederName_5,MATCH(dms_TradingName,dms_TradingName_List))=0),"Network",(INDEX(dms_FeederName_5,MATCH(dms_TradingName,dms_TradingName_List)))) -> Network | L192: =IF((INDEX(dms_FeederName_5,MATCH(dms_TradingName,dms_TradingName_List))=0),"Network",(INDEX(dms_FeederName_5,MATCH(dms_TradingName,dms_TradingName_List)))) -> Network | M192: Network | N192: Network
B194: dms_060701_Rows | C194: All events | D194: After removing excluded events | E194: All events | F194: After removing excluded events | G194: All events | H194: After removing excluded events | I194: All events | J194: After removing excluded events | K194: All events | L194: After removing excluded events | M194: All events | N194: After removing excluded events
C195: the number of column headings changes from 10 to 12 depending on the number of feeder categories for the NSP
C200: Table 6.8.1 - row descriptions
C201: dms_060801_01_Rows | D201: dms_060801_02_Rows | E201: dms_060801_03_Rows | F201: dms_060801_04_Rows
C202: Number of interruptions | D202: Duration of interruptions | E202: Total unplanned minutes off supply | F202: Effect on unplanned MAIFI
C207: Table 7.9.4 - market impact component - row descriptions
B208: dms_070904_01_Rows | C208: without exclusions | D208: with exclusions
C214: Use this to add to existing files
C215: ARRs 6.7 STPIS daily performance
C216: dms_060101_Values | D216: dms_060102_Values | E216: dms_060701_Values
C218: ARR's 6.8 STPIS exclusions
C219: dms_060801_Event_Date | D219: dms_060801_OutageID | E219: dms_060801_FeederID | F219: dms_060801_FeederClass | G219: dms_060801_CauseID | H219: dms_060801_01_Values | I219: dms_060801_02_Values | J219: dms_060801_03_Values | K219: dms_060801_Excl_Cat | L219: dms_060801_04_Values
C220: dms_060801_StartCell
C222: CA 6.3 sustained interruptions
C223: dms_060301_Event_Date | D223: dms_060301_Event_Time | E223: dms_060301_AssetID | F223: dms_060301_FeederClass | G223: dms_060301_Reason | H223: dms_060301_DetailedReason | I223: dms_060301_CustNo_Affected_Values | J223: dms_060301_Avg_Duration_Sustained_Int_Values | K223: dms_060301_Effect_unplanned_SAIDI_Values | L223: dms_060301_Effect_unplanned_SAIFI_Values | M223: dms_060301_MED

Sheet Instructions
B2: =CONCATENATE(dms_Segment," Network Service Provider") -> Distribution Network Service Provider
B3: Historical Reporting RIN Template
C4: =CONCATENATE("This template is to be used by ",dms_TradingName," to fulfil its reporting obligations to the AER.") -> This template is to be used by SA Power Networks to fulfil its reporting obligations to the AER.
C5: INSTRUCTIONS
C6: Complete the Business & other details worksheet before entering data or values in any other worksheets. The Business & other details worksheet is linked to other worksheets within the workbook and automatically generates certain column headings and conditional formatting.
C8: Identifying CONFIDENTIAL INFORMATION: Please use the macro at the top of each worksheet to identify confidential information.
C9: -Do this by selecting the cell or cells that contain confidential information and then run the Mark selection CONFIDENTIAL macro. This will format the cells a specific colour that is identified by the AER's database which in turn marks that information as confidential. -To reverse this, select the cell or cells and run the Return selection to NON-CONFIDENTIAL macro.
C11: UNITS OF MEASURE All amounts are to be unrounded and reported on a one for one basis: that is 1000 is to be entered as '1000'. Applicable units of measure may be identified in the table column headings or row descriptors.
C13: COLOUR CODING OF INPUT / NON-INPUT CELLS:
D14: Yellow = Input cell (mandatory)
D15: Darker yellow = input cell (mandatory)
D16: Orange = input cell (if data available)
D17: Grey = Not applicable/No inputs required
D18: PLEASE DO NOT ENTER TEXT into cells that are to contain numeric data.
C21: WORKSHEET NAVIGATION Many tables in the worksheets have been "grouped" to allow for easy navigation. To ungroup or group data use the outline symbols in the left margin of excel (for Row groupings) or above the columns (for column groupings).
C23: RETURNING COMPLETED RESPONSES Please return two (2) files to the AER: 1. A confidential version which must contain a complete set of all responses with confidential information marked using the Mark selected cells CONFIDENTIAL macro and which has been completed using the locked template file provided by the AER. 2. A public version with confidential information either removed completely or aggregated in some form together with writtten consent to disclose the public version of the response. Use the drop down box on the Business and other details worksheet to identify the file as either confidential ('consolidated') or public.
C25: SUBMITTING AMENDED DATA TO THE AER If an NSP wishes to correct data previously submitted to the AER it should resubmit that data using the original completed submission as the starting point. Please make any necessary changes to the data. Data that is not being amended should be left unchanged. NSPs must identify the reason for the amendments in the Amendment Reason box on the Business and other details worksheet. NSPs may provide further details regarding any amendments in the Amendments worksheet. .
C26: NSP may use Amended Data macro to highlight cells that contain amended data. NB: if data is also CONFIDENTIAL, re-apply the Confidentiality macro after applying the Amended macro
C27: Please resubmit two (2) files - a confidential version and a public version of the amended submission to the AER

Sheet Contents
B1: REGULATORY REPORTING STATEMENT
B2: =INDEX(dms_TradingNameFull_List,MATCH(dms_TradingName,dms_TradingName_List)) -> SA Power Networks
B3: =CONCATENATE("NEW HISTORICAL CATEGORY ANALYSIS DATA ",CRY," TO ",FRY) -> NEW HISTORICAL CATEGORY ANALYSIS DATA 2008-09 TO 2019-20
B4: CONTENTS
E7: 1. Business details | L7: 2. Expenditure
E27: 4. Alternative control services | L27: 5. Network information | S27: 6. Service & quality

Sheet Business & other details
B1: REGULATORY REPORTING STATEMENT
B2: =INDEX(dms_TradingNameFull_List,MATCH(dms_TradingName,dms_TradingName_List)) -> SA Power Networks
B3: =CONCATENATE("NEW HISTORICAL CATEGORY ANALYSIS DATA ",CRY," TO ",FRY) -> NEW HISTORICAL CATEGORY ANALYSIS DATA 2008-09 TO 2019-20
B4: BUSINESS & OTHER DETAILS
B7: Instructions
B8: Complete the following business details regulatory template before entering data or values in any other regulatory template. This regulatory template is linked to other cells within the spreadsheet and automatically generates column headings and conditional formatting to distinguish business specific input and non-input cells.
B10: SUBMISSION PARTICULARS INPUT SHEETS
B12: ENTITY DETAILS
B14: Short name | C14: SA Power Networks | F14: Select business name from drop down list first
B15: ACN / ABN | C15: =INDEX(dms_ABN_List,MATCH(dms_TradingName,dms_TradingName_List)) -> 13332330749
B18: Business address | C18: Address 1 | E18: =INDEX(dms_Addr1_List,MATCH(dms_TradingName,dms_TradingName_List)) -> 1 Anzac Highway
D19: Address 2 | E19: =IF(ISBLANK(INDEX(dms_Addr2_List,MATCH(dms_TradingName,dms_TradingName_List))),"",(INDEX(dms_Addr2_List,MATCH(dms_TradingName,dms_TradingName_List)))) -> 
C20: Suburb | E20: =INDEX(dms_Suburb_List,MATCH(dms_TradingName,dms_TradingName_List)) -> KESWICK
D21: State | E21: =INDEX(dms_State_List,MATCH(dms_TradingName,dms_TradingName_List)) -> SA | F21: p/code | G21: =INDEX(dms_PostCode_List,MATCH(dms_TradingName,dms_TradingName_List)) -> 5035
B23: Postal address | C23: Address 1 | E23: =INDEX(dms_PAddr1_List,MATCH(dms_TradingName,dms_TradingName_List)) -> GPO Box 77
D24: Address 2 | E24: =IF(ISBLANK(INDEX(dms_PAddr2_List,MATCH(dms_TradingName,dms_TradingName_List))),"",(INDEX(dms_PAddr2_List,MATCH(dms_TradingName,dms_TradingName_List)))) -> 
C25: Suburb | E25: =INDEX(dms_PSuburb_List,MATCH(dms_TradingName,dms_TradingName_List)) -> ADELAIDE
D26: State | E26: =INDEX(dms_PState_List,MATCH(dms_TradingName,dms_TradingName_List)) -> SA | F26: p/code | G26: =INDEX(dms_PPostCode_List,MATCH(dms_TradingName,dms_TradingName_List)) -> 5000
B29: Contact name/s | C29: =INDEX(dms_ContactName1_List,MATCH(dms_TradingName,dms_TradingName_List)) -> Richard Sibly
B30: Contact phone/s | C30: =INDEX(dms_ContactPh1_List,MATCH(dms_TradingName,dms_TradingName_List)) -> 08 8404 5613
B31: Contact email address/s | C31: =INDEX(dms_ContactEmail_List,MATCH(dms_TradingName,dms_TradingName_List)) -> richard.sibly@sapowernetworks.com.au
B33: REGULATORY CONTROL PERIODS
B35: Forthcoming regulatory control period | C35: 2020-21 | D35: =dms_FRCP_y2 -> 2021-22 | E35: =dms_FRCP_y3 -> 2022-23 | F35: =dms_FRCP_y4 -> 2023-24 | G35: =dms_FRCP_y5 -> 2024-25
C36: =dms_FRCP_y6 -> 2025-26 | D36: =dms_FRCP_y7 -> 2026-27 | E36: =dms_FRCP_y8 -> 2027-28 | F36: =dms_FRCP_y9 -> 2028-29 | G36: =dms_FRCP_y10 -> 2029-30
B39: Current regulatory control period | C39: =dms_CRCP_FirstYear_Result -> 2015-16 | D39: =IF(dms_RPT="financial",VALUE(LEFT(CRCP_y1,4)+1)&"-"&TEXT(MID(CRCP_y1,3,2)+2,"00"),VALUE(LEFT(CRCP_y1,4)+1)) -> 2016-17 | E39: =IF(dms_RPT="financial",VALUE(LEFT(CRCP_y1,4)+2)&"-"&TEXT(VALUE(MID(CRCP_y1,3,2)+3),"00"),VALUE(LEFT(CRCP_y1,4)+2)) -> 2017-18 | F39: =IF(dms_RPT="financial",VALUE(LEFT(CRCP_y1,4)+3)&"-"&TEXT(MID(CRCP_y1,3,2)+4,"00"),VALUE(LEFT(CRCP_y1,4)+3)) -> 2018-19 | G39: =IF(dms_RPT="financial",VALUE(LEFT(CRCP_y1,4)+4)&"-"&TEXT(MID(CRCP_y1,3,2)+5,"00"),VALUE(LEFT(CRCP_y1,4)+4)) -> 2019-20
C40: =IF(dms_RPT="financial",VALUE(LEFT(CRCP_y1,4)+5)&"-"&TEXT(MID(CRCP_y1,3,2)+6,"00"),VALUE(LEFT(CRCP_y1,4)+5)) -> 2020-21 | D40: =IF(dms_RPT="financial",VALUE(LEFT(CRCP_y1,4)+6)&"-"&TEXT(MID(CRCP_y1,3,2)+7,"00"),VALUE(LEFT(CRCP_y1,4)+6)) -> 2021-22 | E40: =IF(dms_RPT="financial",VALUE(LEFT(CRCP_y1,4)+7)&"-"&TEXT(MID(CRCP_y1,3,2)+8,"00"),VALUE(LEFT(CRCP_y1,4)+7)) -> 2022-23 | F40: =IF(dms_RPT="financial",VALUE(LEFT(CRCP_y1,4)+8)&"-"&TEXT(MID(CRCP_y1,3,2)+9,"00"),VALUE(LEFT(CRCP_y1,4)+8)) -> 2023-24 | G40: =IF(dms_RPT="financial",VALUE(LEFT(CRCP_y1,4)+9)&"-"&TEXT(MID(CRCP_y1,3,2)+10,"00"),VALUE(LEFT(CRCP_y1,4)+9)) -> 2024-25
C41: =IF(dms_RPT="financial",VALUE(LEFT(CRCP_y1,4)+10)&"-"&TEXT(MID(CRCP_y1,3,2)+11,"00"),VALUE(LEFT(CRCP_y1,4)+10)) -> 2025-26 | D41: =IF(dms_RPT="financial",VALUE(LEFT(CRCP_y1,4)+11)&"-"&TEXT(MID(CRCP_y1,3,2)+12,"00"),VALUE(LEFT(CRCP_y1,4)+11)) -> 2026-27 | E41: =IF(dms_RPT="financial",VALUE(LEFT(CRCP_y1,4)+12)&"-"&TEXT(MID(CRCP_y1,3,2)+13,"00"),VALUE(LEFT(CRCP_y1,4)+12)) -> 2027-28 | F41: =IF(dms_RPT="financial",VALUE(LEFT(CRCP_y1,4)+13)&"-"&TEXT(MID(CRCP_y1,3,2)+14,"00"),VALUE(LEFT(CRCP_y1,4)+13)) -> 2028-29 | G41: =IF(dms_RPT="financial",VALUE(LEFT(CRCP_y1,4)+14)&"-"&TEXT(MID(CRCP_y1,3,2)+15,"00"),VALUE(LEFT(CRCP_y1,4)+14)) -> 2029-30
B44: Previous regulatory control period | C44: =IF(dms_RPT="financial",VALUE(LEFT(PRCP_y2,4)-1)&"-"&TEXT(VALUE(MID(PRCP_y2,3,2)),"00"),VALUE(LEFT(PRCP_y2,4)-1)) -> 2010-11 | D44: =IF(dms_RPT="financial",VALUE(LEFT(PRCP_y3,4)-1)&"-"&TEXT(VALUE(MID(PRCP_y3,3,2)),"00"),VALUE(LEFT(PRCP_y3,4)-1)) -> 2011-12 | E44: =IF(dms_RPT="financial",VALUE(LEFT(PRCP_y4,4)-1)&"-"&TEXT(VALUE(MID(PRCP_y4,3,2)),"00"),VALUE(LEFT(PRCP_y4,4)-1)) -> 2012-13 | F44: =IF(dms_RPT="financial",VALUE(LEFT(PRCP_y5,4)-1)&"-"&TEXT(VALUE(RIGHT(PRCP_y5,2)-1),"00"),VALUE(LEFT(PRCP_y5,4)-1)) -> 2013-14 | G44: =IF(dms_RPT="financial",VALUE(LEFT(CRCP_y1,4)-1)&"-"&TEXT(VALUE(RIGHT(CRCP_y1,2)-1),"00"),VALUE(LEFT(CRCP_y1,4)-1)) -> 2014-15
B48: Commencing regulatory year | C48: 2008-09 | D48: CRY
B50: Last completed regulatory year | C50: 2019-20 | D50: dms_FinalYear
C54: IF THIS IS AN ABC RIN - make sure the the named range CRY is applied and the named range dms_dollar_nom_UOM is applied
C55: IF THIS IS A RESET RIN - make sure the named ranges CRY and dms_dollar_nom_UOM are NOT present in the workbook
C56: FOR ABC RINS THAT SPAN MULTIPLE YEARS - make sure MultiYear Flag is set and final year entered as required
B58: Source | C58: Regulatory proposal | E58: Please select the correct submission type from the dropdown list.
B59: Data quality (actual, estimate, public, consolidated) | C59: Public | E59: Use Consolidated for Consolidated Confidential version Use Public for Consolidated Public version
B60: Amended RIN submission - amendment reason | C60: .
B61: Submission Date | C61: 31/01/2019 | D61: dms_SubmissionDate | E61: Please enter date this file submitted to AER (dd/mm/yyyy)
B62: EBSS - First application of scheme in forthcoming period? | C62: No
B63: Sector | C63: =INDEX(dms_Sector_List,MATCH(dms_TradingName,dms_TradingName_List)) -> Electricity | D63: dms_Sector | E63: =INDEX(dms_Sector_List,MATCH(dms_TradingName,dms_TradingName_List))
B64: Segment | C64: =INDEX(dms_Segment_List,MATCH(dms_TradingName,dms_TradingName_List)) -> Distribution | D64: dms_Segment | E64: =INDEX(dms_Segment_List,MATCH(dms_TradingName,dms_TradingName_List))
B65: Regulatory Year Ending | C65: =IF(dms_MultiYear_Flag=1,LEFT(dms_Specified_FinalYear,2)&RIGHT(dms_Specified_FinalYear,2),INDEX(dms_RYE_Formula_Result,MATCH(dms_Model,dms_Model_List))) -> 2020 | D65: dms_RYE | E65: =IF(dms_MultiYear_Flag=1,LEFT(dms_Specified_FinalYear,2)&RIGHT(dms_Specified_FinalYear,2),INDEX(dms_RYE_Formula_Result,MATCH(dms_Model,dms_Model_List)))
B66: Reporting Period Type | C66: =INDEX(dms_RPT_List,MATCH(dms_TradingName,dms_TradingName_List)) -> Financial | D66: dms_RPT | E66: =INDEX(dms_RPT_List,MATCH(dms_TradingName,dms_TradingName_List))
B67: Model or RIN Type | C67: CA | D67: dms_Model | E67: Drop down selection
B68: EB/CA Unit of Measure for Monetary Values | C68: $0s | D68: dms_dollar_nom_UOM | E68: If the cover sheet is attached to an ABC RIN apply the NAMED RANGE to the cell
B69: Security Classification | C69: Public | D69: dms_Classification | E69: Always Public
B70: Jurisdiction | C70: =INDEX(dms_JurisdictionList,MATCH(dms_TradingName,dms_TradingName_List)) -> SA | D70: dms_Jurisdiction | E70: =INDEX(dms_JurisdictionList,MATCH(dms_TradingName,dms_TradingName_List))
B71: FORECAST and MultiYear RINS
B72: CRY-1 (last full calendar year before CRY) | C72: =IF(dms_RPT="financial",VALUE(LEFT(dms_SingleYear_FinalYear_Result,4)),VALUE(LEFT(dms_SingleYear_FinalYear_Result,4)-1)) -> 2008 | D72: dms_Cal_Year_B4_CRY | E72: '=IF(dms_RPT="financial",VALUE(LEFT(dms_SingleYear_FinalYear_Result,4)),VALUE(LEFT(dms_SingleYear_FinalYear_Result,4)-1))
B73: Dollar $ real month | C73: =INDEX(dms_RPTMonth_List,MATCH(dms_TradingName,dms_TradingName_List)) -> June | D73: dms_RPTMonth | E73: =INDEX(dms_RPTMonth_List,MATCH(dms_TradingName,dms_TradingName_List))
B74: Dollar $ real (the last month before the FRCP_y1) | C74: =IF(SUM(dms_SingleYear_Model)>0,CONCATENATE(dms_RPTMonth)&" "&VALUE((LEFT(CRY,2))&RIGHT(CRY,2)),CONCATENATE(dms_RPTMonth)&" "&VALUE((LEFT(dms_CRCP_FinalYear_Result,2)&RIGHT(dms_CRCP_FinalYear_Result,2)))) -> June 2009 | D74: dms_DollarReal | E74: =IF(SUM(dms_SingleYear_Model)>0,CONCATENATE(dms_RPTMonth)&" "&VALUE((LEFT(CRY,2))&RIGHT(CRY,2)),CONCATENATE(dms_RPTMonth)&" "&VALUE((LEFT(dms_CRCP_FinalYear_Result,2)&RIGHT(dms_CRCP_FinalYear_Result,2))))
B75: Dollar $ real previous year (PRCP_y5) | C75: =IF(SUM(dms_SingleYear_Model)>0,CONCATENATE(dms_RPTMonth)&" "&VALUE(((LEFT(CRY,2))&RIGHT(CRY,2))-1),CONCATENATE(dms_RPTMonth)&" "&VALUE(((LEFT(dms_CRCP_FirstYear_Result,2)&RIGHT(dms_CRCP_FirstYear_Result,2))))-1) -> June 2008 | D75: dms_DollarReal_Prev | E75: =IF(SUM(dms_SingleYear_Model)>0,CONCATENATE(dms_RPTMonth)&" "&VALUE(((LEFT(CRY,2))&RIGHT(CRY,2))-1),CONCATENATE(dms_RPTMonth)&" "&VALUE(((LEFT(dms_CRCP_FirstYear_Result,2)&RIGHT(dms_CRCP_FirstYear_Result,2))))-1)
B76: This block works out the various RYE's for ALL RIN types and MODELS
B77: Single Year Model T/F | C77: =IF(dms_Model="EB",1,0) -> 0 | D77: dms_EB
C78: =IF(dms_Model="CA",1,0) -> 1 | D78: dms_CA | E78: =dms_SingleYear_Model
C79: =IF(dms_Model="ARR",1,0) -> 0 | D79: dms_ARR
B80: Is this a single Year RIN? | C80: =IF(SUM(dms_SingleYear_Model)=1,"yes","no") -> yes | E80: =IF(SUM(dms_SingleYear_Model)=1,"yes","no")
B81: Single Year Final Year Reference | C81: CRY | D81: dms_SingleYear_FinalYear_Ref | E81: This is the reference for EB, CA & ARR RINs
B82: Single Year Final Year Result | C82: =IFERROR(IF(SUM(dms_SingleYear_Model)<>0,(INDIRECT(dms_SingleYear_FinalYear_Ref)),"not a single year RIN"),"CRY not present") -> 2008-09 | D82: dms_SingleYear_FinalYear_Result | E82: =IFERROR(IF(SUM(dms_SingleYear_Model)<>0,(INDIRECT(dms_SingleYear_FinalYear_Ref)),"not a single year RIN"),"CRY not present")
B83: FRCP length in years | C83: =INDEX(dms_FRCPlength_List,MATCH(dms_TradingName,dms_TradingName_List)) -> 5 | D83: dms_FRCPlength_Num | E83: =INDEX(dms_FRCPlength_List,MATCH(dms_TradingName,dms_TradingName_List))
B84: Multi Year Final Year Reference | C84: =INDEX(dms_FinalYear_List,MATCH(dms_FRCPlength_Num,dms_FRCPlength_Num_List)) -> dms_FRCP_y5 | D84: dms_MultiYear_FinalYear_Ref | E84: =INDEX(dms_FinalYear_List,MATCH(dms_FRCPlength_Num,dms_FRCPlength_Num_List))
B85: Multi Year Final Year Result | C85: =IF(dms_MultiYear_Flag=0,INDIRECT(dms_MultiYear_FinalYear_Ref),dms_Specified_FinalYear) -> 2019-20 | D85: dms_MultiYear_FinalYear_Result | E85: =IF(dms_MultiYear_Flag=0,INDIRECT(dms_MultiYear_FinalYear_Ref),dms_Specified_FinalYear) | I85: Formula errors OK
B86: CRCP length in years | C86: =INDEX(dms_CRCPlength_List,MATCH(dms_TradingName,dms_TradingName_List)) -> 5 | D86: dms_CRCPlength_Num | E86: =INDEX(dms_CRCPlength_List,MATCH(dms_TradingName,dms_TradingName_List))
B87: CRCP Final Year Reference | C87: =INDEX(dms_CFinalYear_List,MATCH(dms_CRCPlength_Num,dms_CRCPlength_Num_List)) -> CRCP_y5 | D87: dms_CRCP_FinalYear_Ref | E87: =INDEX(dms_CFinalYear_List,MATCH(dms_CRCPlength_Num,dms_CRCPlength_Num_List))
B88: CRCP First Year Result | C88: =INDEX(dms_CRCP_years,MATCH(dms_CRCPlength_Num,dms_CRCP_index)) -> 2015-16 | D88: dms_CRCP_FirstYear_Result | E88: =INDEX(dms_CRCP_years,MATCH(dms_CRCPlength_Num,dms_CRCP_index))
B89: CRCP Final Year Result | C89: =IF(dms_MultiYear_Flag=0,(IF(SUM(dms_SingleYear_Model)>0,CRY,dms_CRCP_yZ)),dms_Specified_FinalYear) -> 2019-20 | D89: dms_CRCP_FinalYear_Result | E89: =IF(dms_MultiYear_Flag=0,(IF(SUM(dms_SingleYear_Model)>0,CRY,dms_CRCP_yZ)),dms_Specified_FinalYear)
B90: PTRM/ RFMs
B91: Form of control | C91: =INDEX(dms_FormControl_List,MATCH(dms_TradingName,dms_TradingName_List)) -> Revenue cap | D91: dms_FormControl | E91: =INDEX(dms_FormControl_List,MATCH(dms_TradingName,dms_TradingName_List))
B92: ABC RINS THAT SPAN MULTIPLE YEARS
B93: Is this a multi year ABC RIN? | C93: yes
B94: Multiyear EB, CA or ARR? | C94: =IF(dms_MultiYear_ResponseFlag="No",0,1) -> 1 | D94: dms_MultiYear_Flag | E94: This is set from the answer provided above
C95: =IF(dms_MultiYear_Flag=1,FRY,"not a Multiple year submission") -> 2019-20 | D95: dms_Specified_FinalYear | E95: The result here is returned to dms_CRCP_FinalYear_Result if response to Q in C73 is "yes" and dms_MultiYear_Flag is set to 1
B96: Start year for 5.2 in Multi year RINS | C96: =IF(dms_MultiYear_Flag=1,FRY,CRY) -> 2019-20 | D96: dms_0502_Inst_Year | E96: =IF(dms_MultiYear_Flag=1,FRY,CRY) | G96: For single year RINS this is CRY - multi year RINS need to start a the end of the span of years (ie. FRY)
B97: EB RINS
B98: Calendar Year for table 3.6 data | C98: =IF(dms_RPT="financial",VALUE(LEFT(dms_SingleYear_FinalYear_Result,4)),VALUE(LEFT(dms_SingleYear_FinalYear_Result,4)-1)) -> 2008 | D98: dms_0306_Year | E98: =IF(dms_RPT="financial",VALUE(LEFT(dms_SingleYear_FinalYear_Result,4)),VALUE(LEFT(dms_SingleYear_FinalYear_Result,4)-1))
B99: CA RINS
B100: Find how many rows in tables 6.3 sustained interruptions? | E100: dms_060301_MaxRows only returns a valid value when cover sheet is attached to a CA file
C101: =IF(dms_Model<>"CA","not a CA","Is a CA") -> Is a CA | E101: =IF(dms_Model<>"CA","not a CA","Is a CA")
B102: dms_060301_Avg_Duration_Sustained_Int_Values present? | C102: =IFERROR(IF(INDEX(dms_060301_Avg_Duration_Sustained_Int_Values,1,1)<>"","yes","no"),"no") -> no | D102: dms_060301_checkvalue | E102: =IFERROR(IF(INDEX(dms_060301_Avg_Duration_Sustained_Int_Values,1,1)<>"","yes","no"),"no")
C103: 0 | E103: =IF(AND(dms_Model="CA",(dms_060301_checkvalue="no")),"error - NR not present","no errors")
B104: Table 6.3.1 - last row reference | C104: =IFERROR(IF(dms_Model="CA",LOOKUP(2,1/(dms_060301_Avg_Duration_Sustained_Int_Values<>""),(ROW(dms_060301_Avg_Duration_Sustained_Int_Values))),"not a CA"),"6.3 not present") -> 6.3 not present | D104: dms_060301_LastRow | E104: =IFERROR(IF(dms_Model="CA",LOOKUP(2,1/(dms_060301_Avg_Duration_Sustained_Int_Values<>""),(ROW(dms_060301_Avg_Duration_Sustained_Int_Values))),"not a CA"),"6.3 not present")
B105: Table 6.3.1 - max number rows | C105: 0 | D105: dms_060301_MaxRows | E105: =IFERROR(IF(dms_Model="CA",(dms_060301_LastRow-15),"not a CA"),"error")
B106: Table 6.6.3 - Public lighting repair - no. business days | C106: =INDEX(dms_663_List,MATCH(dms_TradingName,dms_TradingName_List)) -> 5 | D106: dms_663 | E106: =INDEX(dms_663_List,MATCH(dms_TradingName,dms_TradingName_List))
B107: ARR or RESET RINS
B108: How many rows in tables 6.1 or 6.7? (leap year?) | C108: insert dms_LeapYear NR if required | E108: 'dms_LeapYear is used to determine dms_060701_Max_Rows BUT it is only found on worksheet 6.1 or 6.7 and the date value in the cell is used to determine whether it is a leap year
B109: Is dms_LeapYear named range present? | C109: =IFERROR(IF(dms_LeapYear,"yes"),"no") -> no
B110: Table 6.7.1 - includes a leap year? | C110: =IFERROR(IF(MONTH(DATE(YEAR(dms_LeapYear),2,29))=2,"is a leap year","not a leap year"), "dms_LeapYear not present") -> dms_LeapYear not present | D110: dms_LeapYear_Result | E110: =IFERROR(IF(MONTH(DATE(YEAR(dms_LeapYear),2,29))=2,"is a leap year","not a leap year"),"dms_LeapYear not present")
B111: MaxRows if Reset and leap year | C111: =IF(dms_LeapYear_Result="is a leap year",1827,1826) -> 1826 | D111: dms_060701_Reset_MaxRows | E111: =IF(dms_LeapYear_Result="is a leap year",1827,1826) | H111: number of days present in Reset RIN table
B112: MaxRows if ARR and leap year | C112: =IF(dms_LeapYear_Result="is a leap year",366,365) -> 365 | D112: dms_060701_ARR_MaxRows | E112: =IF(dms_LeapYear_Result="is a leap year",366,365) | H112: number of days present in ARR RIN table
B113: Table 6.7.1 - Max Rows (leap year/ non leap year) | C113: =IF(dms_Model="ARR",dms_060701_ARR_MaxRows,IF(dms_Model="Reset",dms_060701_Reset_MaxRows,"not a relevant RIN type")) -> not a relevant RIN type | D113: dms_060701_MaxRows | E113: =IF(dms_Model="ARR",dms_060701_ARR_MaxRows,IF(dms_Model="Reset",dms_060701_Reset_MaxRows,"not a relevant RIN type"))
B114: How many columns in 6.7? (4 or 5 feeder categories) | C114: =IF(dms_FifthFeeder_flag_NSP="NO","This NSP has only 4 feeder categories","This NSP has 5 feeder categories") -> This NSP has only 4 feeder categories
B115: Table 6.7.1 - Last column (# of feeder categories > 4) | C115: =IF(dms_FifthFeeder_flag_NSP="NO",10,12) -> 10 | D115: dms_060701_MaxCols | E115: =IF(dms_FifthFeeder_flag_NSP="NO",8,10)
B116: Table 6.7.1 - Number of offset rows | C116: =IF(dms_Model="ARR",15,9) -> 9 | D116: dms_060701_OffsetRows | E116: =IF(dms_Model="ARR",15,9)
B117: Start date for telephone answering in 6.1 or 6.7? | E117: Using 060101 as naming standard not 060701 for start dates
B118: Table 6.1.1 and 6.7.1 - Start Date as Text | C118: =IF(SUM(dms_SingleYear_Model)>0,(CONCATENATE(IF(LEN(CRY)=4,"1-Jan-","1-Jul-"),LEFT(CRY,4))),(CONCATENATE(IF(LEN(CRCP_y4)=4,"1-Jan-","1-Jul-"),LEFT(CRCP_y4,4)))) -> 1-Jul-2008 | D118: dms_060101_StartDateTxt | E118: =IF(SUM(dms_SingleYear_Model)>1,(CONCATENATE(IF(LEN(CRY)=4,"1-Jan-","1-Jul-"),LEFT(CRY,4))),(CONCATENATE(IF(LEN(CRCP_y4)=4,"1-Jan-","1-Jul-"),LEFT(CRCP_y4,4))))
B119: Table 6.1.1 and 6.7.1 - Start Date as Date Value | C119: =DATEVALUE(dms_060701_StartDateTxt) -> 39630 | D119: dms_060101_StartDateVal | E119: =DATEVALUE(dms_060701_StartDateTxt)
B120: ARRs
B121: How many rows in table 6.8? | C121: insert dms_060801_StartCell NR if required | E121: dms_060801_StartCell is only found on worksheet 6.8 and is used to determine the starting date for the date range
B122: Is dms_060801_StartCell named range present? | C122: yes | E122: =IFERROR(IF((ROW(dms_060801_StartCell)-1)=1,"yes","yes"),"no")
B123: Table 6.8 - Number of offset rows | C123: 12 | D123: dms_0608_OffsetRows | E123: =IFERROR(IF(dms_Model="ARR",(ROW(dms_060801_StartCell)-1),"not an ARR"),"6.8 error")
B124: Table 6.8 - Last row | C124: 6.8 not present | D124: dms_0608_LastRow | E124: =IFERROR(IF(dms_060801_StartCell<>"",IF(dms_Model="ARR",(LOOKUP(2,1/(dms_060801_01_Values<>""),(ROW(dms_060801_01_Values)))),"not an ARR"),0),"6.8 not present")
B125: Table 6.8 - MaxRows | C125: =IFERROR(IF(dms_Model="ARR",(MAX(0,dms_0608_LastRow-dms_0608_OffsetRows)),"not an ARR"),"6.8 not present") -> not an ARR | D125: dms_060801_MaxRows | E125: =IFERROR(IF(dms_Model="ARR",(MAX(0,dms_0608_LastRow-dms_0608_OffsetRows)),"not an ARR"),"6.8 not present")
B126: TNSP RESET RINS
B127: Table 7.9.4 only appears in TNSPs Reset RIN
B128: Table 7.9.4 - first year | C128: =LEFT(PRCP_y3,4) -> 2012 | D128: dms_070904_Start_Year | E128: =LEFT(PRCP_y3,4)
B129: SUBSET FILES
B130: Is this Submission File a Subset File | C130: Yes | D130: dms_Partial
B131: MISC
B132: Distribution Determination Reference | C132: =INDEX(dms_DeterminationRef_List,MATCH(dms_TradingName,dms_TradingName_List)) -> 2015-20 Distribution Determination | D132: dms_DeterminationRef
B133: Public lighting NSP? | C133: =INDEX(dms_Public_Lighting_List,MATCH(dms_TradingName,dms_TradingName_List)) -> NO | D133: dms_Public_Lighting | E133: =INDEX(dms_Public_Lighting_List,MATCH(dms_TradingName,dms_TradingName_List))
B134: CBD Feeder for this business | C134: =INDEX(dms_CBD_flag,MATCH(dms_TradingName,dms_TradingName_List)) -> NO | D134: dms_CBD_flag_NSP
B135: Urban Feeder for this business | C135: =INDEX(dms_Urban_flag,MATCH(dms_TradingName,dms_TradingName_List)) -> NO | D135: dms_Urban_flag_NSP
B136: Short rural Feeder for this business | C136: =INDEX(dms_ShortRural_flag,MATCH(dms_TradingName,dms_TradingName_List)) -> YES | D136: dms_ShortRural_flag_NSP
B137: Long rural Feeder for this business | C137: =INDEX(dms_LongRural_flag,MATCH(dms_TradingName,dms_TradingName_List)) -> YES | D137: dms_LongRural_flag_NSP
B138: Fifth Feeder Category (eg. TasNetworks (D)) | C138: =INDEX(dms_FeederType_5_flag,MATCH(dms_TradingName,dms_TradingName_List)) -> NO | D138: dms_FifthFeeder_flag_NSP | E138: =INDEX(dms_FeederType_5_flag,MATCH(dms_TradingName,dms_TradingName_List))
B140: DISCARD FILES
B141: discard this record? | C141: NO | D141: dms_DISCARD | E141: If record is to be discarded from DB set this flag to YES
B143: USES NAMED RANGES FLAG | C143: yes | D143: dms_Defined_Names_Used
B145: REGULATORY YEARS FOR MULTI RYE SUBMISSIONS
B146: Multiple RYE flag | C146: NO | D146: dms_Multi_RYE_flag
C147: Manually specify RYE | D147: Named ranges to apply
C148: 2013 | D148: dms_RYE_01
C149: 2014 | D149: dms_RYE_02
C150: 2015 | D150: dms_RYE_03
C151: 2016 | D151: dms_RYE_04
C152: 2017 | D152: dms_RYE_05
C153: 2018 | D153: dms_RYE_06
C154: 2019 | D154: dms_RYE_07
C155: 2020 | D155: dms_RYE_08
C156: 2021 | D156: dms_RYE_09

Sheet 2.5 Connections
B1: REGULATORY REPORTING STATEMENT
B2: =INDEX(dms_TradingNameFull_List,MATCH(dms_TradingName,dms_TradingName_List)) -> SA Power Networks
B3: =CONCATENATE("NEW HISTORICAL CATEGORY ANALYSIS DATA ",CRY," TO ",FRY) -> NEW HISTORICAL CATEGORY ANALYSIS DATA 2008-09 TO 2019-20
B4: 2.5 CONNECTIONS
B6: There are THREE tables on this worksheet - each has been 'grouped' (and sub-grouped) for easy navigation. See the Instructions sheet on how to group or ungroup tables.
B10: 2.5.2 - COST METRICS BY CONNECTION CLASSIFICATION
B12: EXPENDITURE - STANDARD CONTROL SERVICES
E13: EXPENDITURE
E14: ($0's, nominal)
E15: =dms_y1 -> 2008-09 | F15: =dms_y2 -> 2009-10 | G15: =dms_y3 -> 2010-11 | H15: =dms_y4 -> 2011-12 | I15: =dms_y5 -> 2012-13 | J15: =dms_y6 -> 2013-14 | K15: =dms_y7 -> 2014-15 | L15: =dms_y8 -> 2015-16 | M15: =dms_y9 -> 2016-17 | N15: =dms_y10 -> 2017-18
B16: RESIDENTIAL | C16: Simple connection LV | E16: 6819400 | F16: 8389800 | G16: 3769800 | H16: 2488000 | I16: 3691500 | J16: 4232000 | K16: 10346011 | L16: 11187774.75 | M16: 9884116.508 | N16: 8016518.377
C17: Complex connection LV | E17: 2671000 | F17: 3788400 | G17: 3784100 | H17: 2963900 | I17: 2213800 | J17: 2369000 | K17: 2376231 | L17: 2347293.765 | M17: 3299994.327 | N17: 6320460.034
C18: Complex connection HV | E18: 0 | F18: 0 | G18: 0 | H18: 0 | I18: 0 | J18: 0 | K18: 0 | L18: 0 | M18: 0 | N18: 0
B19: COMMERCIAL/INDUSTRIAL | C19: Simple connection LV | E19: 463200 | F19: 463600 | G19: 354800 | H19: 220900 | I19: 338500 | J19: 545000 | K19: 1072971 | L19: 3891347.694 | M19: 1307694.849 | N19: 1284446.663
C20: Complex connection HV (customer connected at LV, minor HV works) | E20: 25086600 | F20: 19788400 | G20: 20270600 | H20: 15385600 | I20: 17029300 | J20: 25996000 | K20: 28671577 | L20: 21602432.1 | M20: 17391929.74 | N20: 18815494.37
C21: Complex connection HV (customer connected at LV, upstream asset works) | E21: 11322400 | F21: 15788900 | G21: 13826300 | H21: 13625500 | I21: 14202200 | J21: 11560000 | K21: 5864469 | L21: 4348333.692 | M21: 7927225.425 | N21: 11353899.75
C22: Complex connection HV (customer connected at HV) | E22: 10707000 | F22: 6288500 | G22: 4026300 | H22: 8815100 | I22: 9878200 | J22: 2886000 | K22: 2737816 | L22: 2669088.186 | M22: 902939.7506 | N22: 2404053.682
C23: Complex connection sub-transmission | E23: 16114900 | F23: 29196600 | G23: 5104600 | H23: 3397800 | I23: 6287100 | J23: 11261000 | K23: 3430063 | L23: 691858.0058 | M23: 144634.9963 | N23: 175336.5856
B24: SUBDIVISION | C24: Complex connection LV | E24: 5314600 | F24: 4438200 | G24: 4509900 | H24: 4545200 | I24: 4295600 | J24: 4224000 | K24: 4111320 | L24: 4507112.692 | M24: 1935652.936 | N24: 1477881.35
C25: Complex connection HV (no upstream asset works) | E25: 6803500 | F25: 4634000 | G25: 4357800 | H25: 2500500 | I25: 3491100 | J25: 6629000 | K25: 3577134 | L25: 4037071.507 | M25: 6306975.862 | N25: 3904220.252
C26: Complex connection HV (with upstream asset works) | E26: 2102100 | F26: 1277900 | G26: 1797600 | H26: 2010000 | I26: 590100 | J26: 1254000 | K26: 957484 | L26: 0 | M26: 4498449.803 | N26: 1870985.104
B27: EMBEDDED GENERATION | C27: Simple connection LV | E27: 4089100 | F27: 6600800 | G27: 9766200 | H27: 12914400 | I27: 10773300 | J27: 0 | K27: 1056397 | L27: 0 | M27: 1637932.78 | N27: 4384365.185
C28: Complex connection HV (small capacity) | E28: 0 | F28: 0 | G28: 0 | H28: 0 | I28: 0 | J28: 0 | K28: 0 | L28: 0 | M28: 0 | N28: 0
C29: Complex connection HV (large capacity) | E29: 0 | F29: 0 | G29: 0 | H29: 0 | I29: 0 | J29: 0 | K29: 0 | L29: 0 | M29: 0 | N29: 0
B31: EXPENDITURE - STANDARD CONTROL SERVICES - CAPITAL CONTRIBUTIONS
E32: EXPENDITURE
E33: ($0's, nominal)
E34: =dms_y1 -> 2008-09 | F34: =dms_y2 -> 2009-10 | G34: =dms_y3 -> 2010-11 | H34: =dms_y4 -> 2011-12 | I34: =dms_y5 -> 2012-13 | J34: =dms_y6 -> 2013-14 | K34: =dms_y7 -> 2014-15 | L34: =dms_y8 -> 2015-16 | M34: =dms_y9 -> 2016-17 | N34: =dms_y10 -> 2017-18
B35: RESIDENTIAL | C35: Simple connection LV | E35: 3036829.265 | F35: 4773351.646 | G35: 2649990.239 | H35: 1079443.834 | I35: 779863.7933 | J35: 1680055.185 | K35: 1872104.193 | L35: 1675177.494 | M35: 882701.3676 | N35: 758492.2239
C36: Complex connection LV | E36: 1838804.182 | F36: 3076399.83 | G36: 3579998.05 | H36: 2006473.948 | I36: 1005884.587 | J36: 1423251.705 | K36: 921794.2014 | L36: 843068.8114 | M36: 1794509.971 | N36: 1488362.987
C37: Complex connection HV | E37: 0 | F37: 0 | G37: 0 | H37: 0 | I37: 0 | J37: 0 | K37: 0 | L37: 0 | M37: 0 | N37: 0
B38: COMMERCIAL/INDUSTRIAL | C38: Simple connection LV | E38: 299318.5893 | F38: 356889.5957 | G38: 320678.0726 | H38: 140213.0279 | I38: 139507.5493 | J38: 177621.493 | K38: 202479.883 | L38: 2114972.39 | M38: 695320.2244 | N38: 418892.3494
C39: Complex connection HV (customer connected at LV, minor HV works) | E39: 18050621.73 | F39: 16684735.11 | G39: 19807676.7 | H39: 10894088.1 | I39: 8267208.674 | J39: 12567229.09 | K39: 13411400.28 | L39: 9405941.108 | M39: 8174855.873 | N39: 8015520.136
C40: Complex connection HV (customer connected at LV, upstream asset works) | E40: 7346086.419 | F40: 12195898.31 | G40: 12532717.18 | H40: 8684185.275 | I40: 5890323.664 | J40: 1838432.522 | K40: 1843436.313 | L40: 1197294.814 | M40: 4569052.801 | N40: 6857044.419
C41: Complex connection HV (customer connected at HV) | E41: 10018601.31 | F41: 6661601.022 | G41: 4804729.335 | H41: 8147300.957 | I41: 6930969.859 | J41: 2023520.135 | K41: 2322224.611 | L41: 1772856.758 | M41: 551268.846 | N41: 1296774.613
C42: Complex connection sub-transmission | E42: 20508329.62 | F42: 40765941.58 | G42: 7811375.046 | H42: 4285201.785 | I42: 6529585.769 | J42: 15173185.9 | K42: 2976392.533 | L42: 0 | M42: 192201.7744 | N42: 263726.8102
B43: SUBDIVISION | C43: Complex connection LV | E43: 3888781.325 | F43: 3796177.109 | G43: 4461856.335 | H43: 3273701.453 | I43: 2137722.16 | J43: 1870490.449 | K43: 2439588.779 | L43: 4146158.396 | M43: 344722.3222 | N43: 309396.7975
C44: Complex connection HV (no upstream asset works) | E44: 7449636.978 | F44: 5646974.85 | G44: 5894367.578 | H44: 2709314.91 | I44: 3005517.748 | J44: 5623236.834 | K44: 4853692.841 | L44: 3058019.414 | M44: 3395104.098 | N44: 2572487.959
C45: Complex connection HV (with upstream asset works) | E45: 861287.4522 | F45: 681570.6564 | G45: 1199641.965 | H45: 800512.9629 | I45: 103659.5726 | J45: 187316.9181 | K45: 57912.37628 | L45: 0 | M45: 529530.5777 | N45: 759702.1023
B46: EMBEDDED GENERATION | C46: Simple connection LV | E46: 0 | F46: 0 | G46: 0 | H46: 0 | I46: 0 | J46: 0 | K46: 0 | L46: 0 | M46: 0 | N46: 0
C47: Complex connection HV (small capacity) | E47: 0 | F47: 0 | G47: 0 | H47: 0 | I47: 0 | J47: 0 | K47: 0 | L47: 0 | M47: 0 | N47: 0
C48: Complex connection HV (large capacity) | E48: 0 | F48: 0 | G48: 0 | H48: 0 | I48: 0 | J48: 0 | K48: 0 | L48: 0 | M48: 0 | N48: 0
B51: 2.5.3 - VOLUMES BY CONNECTION CLASSIFICATION
B53: NEW CONNECTIONS - STANDARD CONTROL SERVICES
E54: VOLUMES (0's)
E55: =dms_y1 -> 2008-09 | F55: =dms_y2 -> 2009-10 | G55: =dms_y3 -> 2010-11 | H55: =dms_y4 -> 2011-12 | I55: =dms_y5 -> 2012-13 | J55: =dms_y6 -> 2013-14 | K55: =dms_y7 -> 2014-15 | L55: =dms_y8 -> 2015-16 | M55: =dms_y9 -> 2016-17 | N55: =dms_y10 -> 2017-18
B56: RESIDENTIAL | C56: Simple connection LV | E56: 11101 | F56: 11116 | G56: 13451 | H56: 9505 | I56: 7941 | J56: 9158 | K56: 10268 | L56: 9196 | M56: 9915 | N56: 10692
C57: Complex connection LV | E57: 92 | F57: 93 | G57: 94 | H57: 93 | I57: 66 | J57: 116 | K57: 88 | L57: 148 | M57: 234 | N57: 256
C58: Complex connection HV | E58: 0 | F58: 0 | G58: 0 | H58: 0 | I58: 0 | J58: 0 | K58: 0 | L58: 0 | M58: 0 | N58: 0
B59: COMMERCIAL/INDUSTRIAL | C59: Simple connection LV | E59: 793 | F59: 619 | G59: 1185 | H59: 996 | I59: 869 | J59: 986 | K59: 1110 | L59: 1738 | M59: 674 | N59: 666
C60: Complex connection HV (customer connected at LV, minor HV works) | E60: 283 | F60: 328 | G60: 277 | H60: 290 | I60: 191 | J60: 170 | K60: 117 | L60: 269 | M60: 328 | N60: 360
C61: Complex connection HV (customer connected at LV, upstream asset works) | E61: 119 | F61: 139 | G61: 117 | H61: 123 | I61: 80 | J61: 12 | K61: 7 | L61: 2 | M61: 57 | N61: 81
C62: Complex connection HV (customer connected at HV) | E62: 6 | F62: 6 | G62: 13 | H62: 7 | I62: 0 | J62: 5 | K62: 8 | L62: 3 | M62: 12 | N62: 19
C63: Complex connection sub-transmission | E63: 0 | F63: 0 | G63: 1 | H63: 1 | I63: 0 | J63: 0 | K63: 1 | L63: 0 | M63: 3 | N63: 0
B64: SUBDIVISION | C64: Complex connection LV | E64: 77 | F64: 73 | G64: 67 | H64: 52 | I64: 46 | J64: 65 | K64: 136 | L64: 137 | M64: 150 | N64: 262
C65: Complex connection HV (no upstream asset works) | E65: 54 | F65: 41 | G65: 34 | H65: 41 | I65: 27 | J65: 105 | K65: 75 | L65: 128 | M65: 100 | N65: 91
C66: Complex connection HV (with upstream asset works) | E66: 19 | F66: 15 | G66: 13 | H66: 8 | I66: 5 | J66: 8 | K66: 15 | L66: 0 | M66: 47 | N66: 45
B67: EMBEDDED GENERATION | C67: Simple connection LV | E67: 7000 | F67: 8813 | G67: 32622 | H67: 58207 | I67: 31450 | J67: 24144 | K67: 10923 | L67: 8755 | M67: 9828 | N67: 7380
C68: Complex connection HV (small capacity) | E68: 0 | F68: 0 | G68: 0 | H68: 0 | I68: 0 | J68: 0 | K68: 0 | L68: 0 | M68: 0 | N68: 0
C69: Complex connection HV (large capacity) | E69: 0 | F69: 0 | G69: 0 | H69: 0 | I69: 0 | J69: 0 | K69: 0 | L69: 0 | M69: 0 | N69: 0

Sheet 2.6 Non-network
B1: REGULATORY REPORTING STATEMENT
B2: =INDEX(dms_TradingNameFull_List,MATCH(dms_TradingName,dms_TradingName_List)) -> SA Power Networks
B3: =CONCATENATE("NEW HISTORICAL CATEGORY ANALYSIS DATA ",CRY," TO ",FRY) -> NEW HISTORICAL CATEGORY ANALYSIS DATA 2008-09 TO 2019-20
B4: 2.6 NON NETWORK EXPENDITURE
B6: There are THREE tables on this worksheet - each has been 'grouped' (and sub-grouped) for easy navigation. See the Instructions sheet on how to group or ungroup tables.
B10: 2.6.4 - INFORMATION & COMMUNICATIONS TECHNOLOGY - CAPEX BY PURPOSE
F11: EXPENDITURE
F12: ($0's, nominal)
F13: =dms_y1 -> 2008-09 | G13: =dms_y2 -> 2009-10 | H13: =dms_y3 -> 2010-11 | I13: =dms_y4 -> 2011-12 | J13: =dms_y5 -> 2012-13 | K13: =dms_y6 -> 2013-14 | L13: =dms_y7 -> 2014-15 | M13: =dms_y8 -> 2015-16 | N13: =dms_y9 -> 2016-17 | O13: =dms_y10 -> 2017-18
B14: ICT CAPABILITY GROWTH
B15: Capability Growth | F15: 1126934 | G15: 1311470 | H15: 3011053 | I15: 3290334 | J15: 4087538 | K15: 5031942 | L15: 7149766 | M15: 3148790 | N15: 11470356 | O15: 8100284
B25: ICT ASSET EXTENSIONS
B26: Asset Extension | F26: 3354984 | G26: 1928472 | H26: 4998501 | I26: 7712709 | J26: 4482314 | K26: 3258280 | L26: 8988012 | M26: 6357086 | N26: 11588493 | O26: 27675186
B36: ICT ASSET REMEDITATION
B37: Asset Remediation | F37: 264358 | G37: 130624 | H37: 95790 | I37: 1132274 | J37: 4034589 | K37: 972549 | L37: 729101 | M37: 1849347 | N37: 4283752 | O37: 2587369
B47: ICT ASSET REPLACEMENT
B48: Asset Replacement | F48: 10802725 | G48: 7450433 | H48: 12504656 | I48: 14497684 | J48: 13010560 | K48: 18375588 | L48: 27829122 | M48: 30641776 | N48: 27423806 | O48: 24757614

Sheet 2.10 Network overheads
B1: REGULATORY REPORTING STATEMENT
B2: =dms_TradingName -> SA Power Networks
B3: =CONCATENATE("NEW HISTORICAL CATEGORY ANALYSIS DATA ",CRY," TO ",FRY) -> NEW HISTORICAL CATEGORY ANALYSIS DATA 2008-09 TO 2019-20
B4: 2.10 OVERHEADS
B7: 2.10.1 - NETWORK OVERHEADS EXPENDITURE
D8: EXPENDITURE
D9: ($0's, nominal)
D10: =dms_y1 -> 2008-09 | E10: =dms_y2 -> 2009-10 | F10: =dms_y3 -> 2010-11 | G10: =dms_y4 -> 2011-12 | H10: =dms_y5 -> 2012-13 | I10: =dms_y6 -> 2013-14 | J10: =dms_y7 -> 2014-15 | K10: =dms_y8 -> 2015-16 | L10: =dms_y9 -> 2016-17 | M10: =dms_y10 -> 2017-18
B11: OPEX
B12: Standard Control Services | C12: Total | D12: 55402632.6 | E12: 57861008.86 | F12: 70568200.33 | G12: 65596180.82 | H12: 74174236.46 | I12: 85280970.7 | J12: 79442045.27 | K12: 70507151.36 | L12: 94276825.4 | M12: 80334962.48
B13: Alternative Control Services | C13: Total | D13: 1514162.896 | E13: 1834678.694 | F13: 1675562.077 | G13: 1519622.811 | H13: 1516834.433 | I13: 1590962.438 | J13: 1274937.834 | K13: 5284398.805 | L13: 5112147.491 | M13: 4342617.097
B14: CAPEX
B15: Standard Control Services | C15: Total | D15: 9120686.736 | E15: 10917801.96 | F15: 10254869.18 | G15: 9714721.693 | H15: 12031571.87 | I15: 10830014.79 | J15: 8803827.88 | K15: 7624423.697 | L15: 10655357.73 | M15: 6676733.493
B16: Alternative Control Services | C16: Total | D16: 137618.7917 | E16: 202639.322 | F16: 785628.5135 | G16: 953855.8714 | H16: 873796.8625 | I16: 804609.1073 | J16: 685010.65 | K16: 522288.25 | L16: 867230.45 | M16: 186279.1951
B17: OTHER DISTRIBUTION SERVICES
B18: Negotiated Services | C18: Total | D18: 0 | E18: 0 | F18: 0 | G18: 0 | H18: 0 | I18: 0 | J18: 0 | K18: 0 | L18: 0 | M18: 0
B19: Unregulated Services | C19: Total | D19: 0 | E19: 0 | F19: 0 | G19: 0 | H19: 0 | I19: 0 | J19: 0 | K19: 0 | L19: 0 | M19: 0
B23: 2.10.2 - CORPORATE OVERHEADS EXPENDITURE
D24: EXPENDITURE
D25: ($0's, nominal)
D26: =dms_y1 -> 2008-09 | E26: =dms_y2 -> 2009-10 | F26: =dms_y3 -> 2010-11 | G26: =dms_y4 -> 2011-12 | H26: =dms_y5 -> 2012-13 | I26: =dms_y6 -> 2013-14 | J26: =dms_y7 -> 2014-15 | K26: =dms_y8 -> 2015-16 | L26: =dms_y9 -> 2016-17 | M26: =dms_y10 -> 2017-18
B27: OPEX
B28: Standard Control Services | C28: Total | D28: 36262960.15 | E28: 36615216.76 | F28: 55498211.43 | G28: 58888731.51 | H28: 56320348.19 | I28: 63044474.82 | J28: 65880082.84 | K28: 52874705.79 | L28: 58995611.88 | M28: 72593463.51
B29: Alternative Control Services | C29: Total | D29: 3087561.643 | E29: 3480097.48 | F29: 4793064.462 | G29: 5634173.11 | H29: 3989372.165 | I29: 4463089.949 | J29: 4254116.444 | K29: 5655373.517 | L29: 5382073.741 | M29: 9039711.123
B30: CAPEX
B31: Standard Control Services | C31: Total | D31: 3827000 | E31: 3192000 | F31: 3767000 | G31: -44000 | H31: -3730000 | I31: -7267000 | J31: -18253075.62 | K31: -13251556.65 | L31: -9361715.3 | M31: -6939995.236
B32: Alternative Control Services | C32: Total | D32: 54000 | E32: 39000 | F32: 3000 | G32: -179000 | H32: -295000 | I32: -332000 | J32: -532074.5003 | K32: -328613.2 | L32: -271916.28 | M32: -232615.5917
B33: OTHER DISTRIBUTION SERVICES
B34: Negotiated Services | C34: Total | D34: 0 | E34: 0 | F34: 0 | G34: 0 | H34: 0 | I34: 0 | J34: 0 | K34: 0 | L34: 0 | M34: 0
B35: Unregulated Services | C35: Total | D35: 202368.9402 | E35: 205351.0755 | F35: 275143.2737 | G35: 297168.4569 | H35: 279658.0349 | I35: 310508.5633 | J35: 319809.3241 | K35: 280326.6779 | L35: 305270.1451 | M35: 392419.8934

Sheet 2.11 Labour
B1: REGULATORY REPORTING STATEMENT
B2: =dms_TradingName -> SA Power Networks
B3: =CONCATENATE("NEW HISTORICAL CATEGORY ANALYSIS DATA ",CRY," TO ",FRY) -> NEW HISTORICAL CATEGORY ANALYSIS DATA 2008-09 TO 2019-20
B4: 2.11 LABOUR
B6: Table numbering on this worksheet starts at 2.11.3.
B8: 2.11.3 - LABOUR / NON-LABOUR EXPENDITURE SPLIT - STANDARD CONTROL SERVICES
C9: EXPENDITURE
C10: ($0's, nominal)
C11: =dms_y1 -> 2008-09 | D11: =dms_y2 -> 2009-10 | E11: =dms_y3 -> 2010-11 | F11: =dms_y4 -> 2011-12 | G11: =dms_y5 -> 2012-13 | H11: =dms_y6 -> 2013-14 | I11: =dms_y7 -> 2014-15 | J11: =dms_y8 -> 2015-16 | K11: =dms_y9 -> 2016-17 | L11: =dms_y10 -> 2017-18
B12: OPEX
B13: In-house labour expenditure | C13: 79788843.52 | D13: 80469164.72 | E13: 91151576.54 | F13: 97948930.22 | G13: 108081111.7 | H13: 114614690.2 | I13: 97863044.18 | J13: 98897049 | K13: 106812220.8 | L13: 94525882.99
B14: Labour expenditure outsourced to related parties | C14: 0 | D14: 0 | E14: 0 | F14: 0 | G14: 0 | H14: 0 | I14: 0 | J14: 0 | K14: 0 | L14: 0
B15: Labour expenditure outsourced to unrelated parties | C15: 4234441.33 | D15: 4123335.111 | E15: 5134704.272 | F15: 12250727.52 | G15: 9975274.372 | H15: 7812338.25 | I15: 6592788.82 | J15: 5238205.894 | K15: 6212966.52 | L15: 7251556.82
B16: Controllable non-labour expenditure | C16: 60723344.64 | D16: 63826791.44 | E16: 89058271.29 | F16: 88005466.45 | G16: 98678912.2 | H16: 105353658.1 | I16: 137338037.2 | J16: 101997060.4 | K16: 129582147.6 | L16: 141048578.7
B17: Uncontrollable non-labour expenditure | C17: 6024370.517 | D17: 5863708.725 | E17: 8148447.902 | F17: 8508875.817 | G17: 8709701.73 | H17: 8991313.53 | I17: 9062428.538 | J17: 8283574.355 | K17: 8102975.724 | L17: 8389725.946
B18: Total | C18: =SUM(C13:C17) -> 150771000 | I18: =SUM(I13:I17) -> 250856298.7 | J18: =SUM(J13:J17) -> 214415889.6 | K18: =SUM(K13:K17) -> 250710310.6 | L18: =SUM(L13:L17) -> 251215744.4
B19: CAPEX
B20: In-house labour expenditure | C20: 73761394.65 | D20: 86245040.97 | E20: 88196339.5 | F20: 93919416.95 | G20: 102414122.7 | H20: 105733173 | I20: 119079268.8 | J20: 106588506.4 | K20: 116052862.9 | L20: 126687122
B21: Labour expenditure outsourced to related parties | C21: 0 | D21: 0 | E21: 0 | F21: 0 | G21: 0 | H21: 0 | I21: 0 | J21: 0 | K21: 0 | L21: 0
B22: Labour expenditure outsourced to unrelated parties | C22: 7562841.538 | D22: 10474809.47 | E22: 15387200.68 | F22: 21993039.49 | G22: 28136020.1 | H22: 23824662.21 | I22: 12052256.38 | J22: 7482358.332 | K22: 9715733.764 | L22: 12917751.42
B23: Controllable non-labour expenditure | C23: 167704763.8 | D23: 174772149.6 | E23: 226983459.8 | F23: 246113543.6 | G23: 232889857.2 | H23: 200487164.8 | I23: 215737399.2 | J23: 147090445.5 | K23: 176217340.1 | L23: 260363770
B24: Uncontrollable non-labour expenditure | C24: 0 | D24: 0 | E24: 0 | F24: 0 | G24: 0 | H24: 0 | I24: 0 | J24: 0 | K24: 0 | L24: 0
B25: Total | C25: =SUM(C20:C24) -> 249029000 | I25: =SUM(I20:I24) -> 346868924.4 | J25: =SUM(J20:J24) -> 261161310.2 | K25: =SUM(K20:K24) -> 301985936.7 | L25: =SUM(L20:L24) -> 399968643.5

Sheet Amendments
B1: =CONCATENATE("If ",dms_TradingName," resubmits this Regulatory Reporting Statement, please use this worksheet to identify amendments made to data resubmitted to the AER.") -> If SA Power Networks resubmits this Regulatory Reporting Statement, please use this worksheet to identify amendments made to data resubmitted to the AER.
B2: NSP data amendments
B3: Worksheet | C3: Table/Cell | D3: Reason for amendment
